Cogmind - Beta 11 X5 @@@ ROGUE MODE // 2021.06.18 @ 21:36:04 Player: aoemica Result: Escaped singularity! Performance ------------- Evolutions (9) 4500 Regions Visited (36) 7200 Robots Destroyed (674) 3370 Value Destroyed (42786) 42786 Prototype IDs (95) 1900 Alien Tech Used (13) 2600 Bonus (55962) 55962 TOTAL SCORE: 118318 Bonus ------- High Alert Combat Kills 5600 Follower Combat Kills 3875 Entered Garrisons 1800 Used RIF Installer 4500 Network Hubs Disabled 200 Destroyed MAIN.C Guards 500 Met MAIN.C 5000 Destroyed MAIN.C Shell 5000 Destroyed MAIN.C 10000 Met Architect 300 Started Test 138-B 500 Destroyed A8 300 Destroyed A6 400 Destroyed A5 500 Destroyed A4 700 Destroyed A3 800 Destroyed A2 1000 Destroyed Architect 15000 Win 3000 Friendly Fire -3013 Cogmind --------- Core Integrity 752/1600 Matter 260/300 Energy 234/240 System Corruption 0% Temperature Cool (8) Movement Hovering (48) Location Near Former Tau Ceti IV Parts ------- > --- POWER (3) -------- Zero-point Reactor > --- PROPULSION (6) --- Cooled Antigrav System Cooled Antigrav System Combat Antigrav System Experimental Gyrokinetic Inverter > --- UTILITY (10) ----- Coolant Network Quantum Shading Machine Experimental Targeting Computer Experimental Targeting Computer Advanced Armor Integrity Analyzer Experimental Weapon Cycler AEGIS Remote Shield > --- WEAPON (6) ------- Cooled Nova Cannon Cooled Nova Cannon Sigix Broadsword > --- INVENTORY (5) ---- High-powered Transdimensional Reconstructor Peak State ------------ > --- POWER ------------ Improved Quantum Reactor Vortex Chain Reactor > --- PROPULSION ------- Experimental Biometal Heavy Treads High-density Centrium Heavy Treads High-density Centrium Heavy Treads > --- UTILITY ---------- Coolant Network Huge Storage Unit Experimental Targeting Computer Experimental Targeting Computer Advanced Armor Integrity Analyzer Experimental Powered Armor Heavy Regenerative Plating Experimental Force Field > --- WEAPON ----------- Enhanced Nova Cannon Cooled Nova Cannon Cooled Nova Cannon Cooled Nova Cannon Sigix Broadsword > --- INVENTORY -------- Zero-point Reactor Experimental Biometal Heavy Treads Desublimator Coolant Network Experimental Coolant Injector Experimental Energy Well Experimental Energy Well Experimental Matter Compressor Advanced Armor Integrity Analyzer Improved Weapon Shielding Heavy Regenerative Plating Experimental Focal Shield AEGIS Remote Shield System Purifier Integrity Redistributor Enhanced Nova Cannon Enhanced Nova Cannon Enhanced Nova Cannon Enhanced Nova Cannon Hypervelocity Linear Accelerator Hypervelocity Linear Accelerator [Rating: 262] Favorites ----------- Power Improved Quantum Reactor Engine Improved Deuterium Engine Power Core Micro Fission Core Reactor Improved Quantum Reactor Propulsion Biometal Heavy Treads Treads Biometal Heavy Treads Leg Aluminum Leg Wheel Armored Wheel Hover Unit Combat Antigrav System Flight Unit Xenon Bombardment Thruster Utility Huge Storage Unit Device Improved Cooling System Storage Huge Storage Unit Processor Experimental Targeting Computer Hackware Relay Coupler [NC] Protection Heavy Regenerative Plating Artifact Phase Armor Weapon Enhanced Nova Cannon Energy Gun Improved Arc Projector Energy Cannon Enhanced Nova Cannon Ballistic Gun Light Assault Rifle Ballistic Cannon Linear Accelerator Launcher Heavy Missile Launcher Special Weapon Advanced Remote Datajack Impact Weapon Core Stripper Slashing Weapon Sigix Broadsword Piercing Weapon Enhanced Force Lance Build | -11 -10 -10 -9 -9 -8 -8 -7 -7 -7 -7 -7 -7 -6 -6 -5 -5 -5 -5 -5 -5 -5 -5 -4 -4 -3 -3 -3 -3 -3 -2 -2 -2 -2 -1 -1 -1 ------- Run | Scr Mat Min Mat Sto Mat Gar Fac Was Fac Gar Fac Gar Fac Gar Fac Was Fac Ext Cet Arc Hub Gar Fac Gar Res Gar Res Tes Gar Res Qua Sec Gar Acc Com Ac0 Slots Evolved 18 | . . . 2 . 2 . 2 . . . . . 2 . 2 . . . . . . . 2 . 2 . . . . 2 . . . 2 . . Power 2 | . . . . . . . . . . . . . 1 . . . . . . . . . . . . . . . . 1 . . . . . . Propulsion 4 | . . . 1 . . . 1 . . . . . . . . . . . . . . . . . 2 . . . . . . . . . . . Utility 8 | . . . . . 2 . 1 . . . . . 1 . 2 . . . . . . . 2 . . . . . . . . . . . . . Weapon 4 | . . . 1 . . . . . . . . . . . . . . . . . . . . . . . . . . 1 . . . 2 . . Parts Attached 831 | . 17 9 29 17 5 2 2 7 . 3 20 9 6 2 11 11 11 14 18 5 26 18 26 27 15 35 91 27 21 18 50 41 47 20 85 86 Power 59 | . 3 1 3 4 . . . . . 1 1 . . 1 1 2 . . 1 1 4 2 1 1 . 2 6 3 1 3 4 2 . . 5 6 Engine 16 | . 3 1 3 4 . . . . . 1 1 . . 1 . . . . . . 1 1 . . . . . . . . . . . . . . Core 5 | . . . . . . . . . . . . . . . 1 . . . . . 1 . . 1 . 1 1 . . . . . . . . . Reactor 38 | . . . . . . . . . . . . . . . . 2 . . 1 1 2 1 1 . . 1 5 3 1 3 4 2 . . 5 6 Propulsion 88 | . 6 5 10 1 . . 1 2 . . . . . . 1 2 . . 3 . . . 2 6 1 2 12 1 1 3 4 3 1 3 10 8 Treads 72 | . 2 3 10 1 . . 1 2 . . . . . . 1 2 . . 3 . . . 2 6 1 2 12 1 1 3 4 3 1 3 5 3 Leg 4 | . 4 . . . . . . . . . . . . . . . . . . . . . . . . . . . . . . . . . . . Wheel 2 | . . 2 . . . . . . . . . . . . . . . . . . . . . . . . . . . . . . . . . . Hover 5 | . . . . . . . . . . . . . . . . . . . . . . . . . . . . . . . . . . . . 5 Flight 5 | . . . . . . . . . . . . . . . . . . . . . . . . . . . . . . . . . . . 5 . Utility 371 | . 5 1 8 5 3 . 1 4 . 2 8 7 4 . 4 4 5 6 4 3 14 7 19 6 6 16 47 11 14 6 23 21 17 11 45 34 Device 244 | . 4 1 6 4 3 . . 4 . 2 3 6 . . 2 2 3 4 2 2 10 4 11 1 4 8 39 7 12 2 14 15 11 5 30 23 Storage 16 | . 1 . . 1 . . . . . . . . . . 2 . . . . . 1 . 2 . . . 1 . . . 2 . . 1 4 1 Processor 10 | . . . 1 . . . . . . . . . . . . . 1 . . . . . 1 . . . 1 . . . 1 . . . 4 1 Hackware 42 | . . . . . . . . . . . 2 . 1 . . 1 . . . . 1 2 1 4 1 5 3 1 1 2 1 2 5 5 4 . Protection 54 | . . . 1 . . . 1 . . . 3 1 3 . . 1 1 2 2 1 2 1 4 1 1 3 3 3 1 2 3 1 1 . 3 9 Artifact 5 | . . . . . . . . . . . . . . . . . . . . . . . . . . . . . . . 2 3 . . . . Weapon 313 | . 3 2 8 7 2 2 . 1 . . 11 2 2 1 5 3 6 8 10 1 8 9 4 14 8 15 26 12 5 6 19 15 29 6 25 38 Energy Gun 6 | . . . . . . . . . . . . . . . . . . . 4 . . . . . . . . . . . . . . . 1 1 Energy Cannon 176 | . 3 . 3 4 1 1 . . . . 6 1 . 1 2 2 3 4 3 . 6 5 3 7 2 8 14 7 4 4 11 7 17 4 15 28 Ballistic Gun 2 | . . . . . . . . . . . . . . . . . . . 1 . . . . . . . . . . . . . . . . 1 Ballistic Cannon 36 | . . 2 5 2 . . . 1 . . 2 . 1 . . . . 1 . 1 1 1 1 2 2 . 2 . . . 1 . . . 5 6 Launcher 8 | . . . . 1 1 1 . . . . 2 1 . . . . . . 2 . . . . . . . . . . . . . . . . . Special Weapon 72 | . . . . . . . . . . . 1 . 1 . 3 . 3 3 . . 1 3 . 5 4 7 10 5 1 2 5 6 9 1 2 . Impact Weapon 5 | . . . . . . . . . . . . . . . . . . . . . . . . . . . . . . . 1 1 1 1 1 . Slashing Weapon 7 | . . . . . . . . . . . . . . . . . . . . . . . . . . . . . . . 1 1 2 . 1 2 Piercing Weapon 1 | . . . . . . . . . . . . . . . . 1 . . . . . . . . . . . . . . . . . . . . Special Melee Weapon . | . . . . . . . . . . . . . . . . . . . . . . . . . . . . . . . . . . . . . Unidentified Prototypes 57 | . . . . 1 . . . . . . . . . . 1 . . . 4 . 4 . 5 . . . . 2 . . 12 6 . . 11 11 Corrupted Parts 4 | . . . . . . . . . . . . . . . . . . . . . . . . . . . 1 . 3 . . . . . . . System Corruption 35 | . . . . . . . . . . . . . . . . . . . . . . . . . . . 10 . 25 . . . . . . . Parts Lost 36 | . . . 1 . . 1 . . . . . 2 . . 1 . . 1 8 . 3 . 1 . . 1 2 . 2 1 . . . 1 . 11 Power 4 | . . . . . . . . . . . . . . . . . . . 2 . 1 . . . . . . . . . . . . . . 1 Propulsion 4 | . . . . . . . . . . . . . . . . . . . 1 . . . . . . . . . 1 . . . . . . 2 Utility 19 | . . . . . . . . . . . . 2 . . 1 . . 1 3 . 2 . 1 . . 1 2 . 1 1 . . . 1 . 3 Weapon 9 | . . . 1 . . 1 . . . . . . . . . . . . 2 . . . . . . . . . . . . . . . . 5 Highest Loss Streak 5 | . . . 1 . . 1 . . . . . 1 . . 1 . . 1 5 . 1 . 1 . . 1 1 . 1 1 . . . 1 . 1 Average Slot Usage (%) 82 | . 98 100 99 99 100 100 100 88 84 84 83 84 83 86 87 87 88 87 82 86 87 86 87 82 79 79 86 79 80 81 80 72 72 75 72 74 Engine 2 | . 14 14 10 10 9 9 7 7 7 7 7 7 11 13 5 1 . . . . 3 . 2 . . . . . . . . . . . . . Reactor 6 | . . . . . . . . . . . . . . . . 7 11 11 5 9 6 10 8 9 4 1 4 9 9 11 12 8 8 8 7 10 Treads 14 | . 18 27 32 33 27 27 30 19 15 15 15 15 13 13 11 11 11 11 11 11 11 11 10 12 14 13 18 14 14 13 12 13 13 12 11 10 Device 15 | . 12 14 10 11 27 27 23 23 23 23 22 23 20 20 22 22 23 23 22 23 17 21 23 16 14 8 18 19 15 16 13 14 12 10 13 11 Storage 5 | . 14 14 11 11 9 9 7 7 7 7 7 7 6 6 10 11 5 5 5 5 5 5 7 5 4 4 6 4 4 4 4 4 4 4 3 4 Processor 4 | . . . . . . . . . . . . . . . . . 4 5 5 5 5 5 5 5 4 4 1 4 4 4 4 4 4 4 8 11 Hackware 5 | . . . . . . . . . . . . . 4 6 5 4 5 4 . . 4 6 9 9 12 18 11 6 7 9 11 10 13 13 4 . Protection 4 | . . . . . . . 7 7 7 7 6 7 6 6 5 5 5 4 11 11 10 5 4 6 5 4 3 5 9 3 . 4 3 4 3 5 Energy Cannon 12 | . 25 15 3 10 9 15 15 15 15 15 14 14 13 16 15 15 16 14 14 11 11 14 14 11 8 11 12 12 13 16 14 7 6 11 10 14 Ballistic Cannon 4 | . . 12 28 21 18 11 7 7 7 7 7 7 6 3 . . . 1 . 5 3 . . . 3 . . . . . . . . . 3 1 Slashing Weapon 1 | . . . . . . . . . . . . . . . . . . . . . . . . . . . . . . . . 3 4 4 3 3 Naked Turns . | . . . . . . . . . . . . . . . . . . . . . . . . . . . . . . . . . . . . . Heaviest Build 253 | 12 32 34 43 61 64 68 76 77 76 81 88 101 89 97 113 114 115 125 127 119 155 146 152 162 162 167 198 187 195 209 232 206 215 230 237 253 Greatest Support 265 | 20 40 42 65 62 62 62 82 140 140 140 140 140 140 140 140 145 145 145 160 160 160 160 160 155 225 225 215 195 210 230 240 250 240 240 265 265 Greatest Overweight (x) 78 | . . 1 . 1 1 1 . . . . . . . . . 1 . . 1 39 . . . 2 . 1 . . . . 1 . . . 78 4 Average Overweight (x) . | . . . . . 1 1 . . . . . . . . . . . . . 11 . . . . . . . . . . . . . . . . Largest Inventory Capacity 25 | . 15 15 15 20 20 20 20 20 20 20 20 20 20 20 20 20 20 20 20 20 25 25 25 25 25 25 25 25 25 25 25 25 25 25 25 25 Average Capacity 22 | . 12 15 15 19 20 20 20 20 20 20 20 20 20 20 20 20 20 20 20 20 22 25 25 25 25 25 25 25 25 25 25 25 25 25 24 24 Most Carried 25 | . 15 15 15 20 20 20 20 20 20 20 20 20 20 20 20 20 20 20 20 20 25 25 25 25 25 25 25 25 25 25 25 25 25 25 25 25 Average Carried 21 | . 10 14 14 19 19 19 19 19 20 19 19 19 19 19 19 19 19 19 18 19 21 21 24 21 24 24 24 24 24 24 24 24 22 24 23 23 Final Capacity 25 | 8 15 15 15 20 20 20 20 20 20 20 20 20 20 20 20 20 20 20 20 20 25 25 25 25 25 25 25 25 25 25 25 25 25 25 25 5 Final Carried 25 | 6 15 15 15 20 20 20 20 20 20 20 20 20 20 20 19 20 20 20 20 20 24 25 25 25 25 25 25 25 25 25 25 25 25 25 25 1 Class Distribution -------------------- 21% | Botlord-Mutant 16% | Generator-Gunner 10% | Botlord-Tank 8% | Mutant 7% | Bothacker-Tank 6% | Gunner 6% | Tank 4% | Bothacker-Mutant 4% | Botlord-Gunner 3% | Scavenger-Mutant Dominant Class ---------------- Mutant | -10/Materials Mutant | -10/Mines Gunner | -9/Materials Gunner | -9/Storage Tank | -8/Materials Tank | -8/Garrison Mutant | -7/Factory Mutant | -7/Waste Mutant | -7/Factory Mutant | -7/Garrison Tank | -7/Factory Tank | -7/Garrison Bothacker-Mutant | -6/Factory Bothacker-Tank | -6/Garrison Bothacker-Tank | -5/Factory Bothacker-Mutant | -5/Waste Bothacker-Tank | -5/Factory Bothacker-Tank | -5/Extension Bothacker-Mutant | -5/Cetus Scavenger-Mutant | -5/Archives Bothacker-Tank | -5/Hub_04(d) Botlord-Tank | -5/Garrison Botlord-Tank | -4/Factory Botlord-Mutant | -4/Garrison Botlord-Mutant | -3/Research Botlord-Mutant | -3/Garrison Botlord-Tank | -3/Research Botlord-Tank | -3/Testing Scavenger-Tank | -3/Garrison Botlord-Tank | -2/Research Botlord-Mutant | -2/Quarantine Botlord-Mutant | -2/Section 7 Botlord-Mutant | -2/Garrison Botlord-Mutant | -1/Access Generator-Gunner | -1/Command Generator-Gunner | -1/Access_0 Resources | -11 -10 -10 -9 -9 -8 -8 -7 -7 -7 -7 -7 -7 -6 -6 -5 -5 -5 -5 -5 -5 -5 -5 -4 -4 -3 -3 -3 -3 -3 -2 -2 -2 -2 -1 -1 -1 ----------- Run | Scr Mat Min Mat Sto Mat Gar Fac Was Fac Gar Fac Gar Fac Gar Fac Was Fac Ext Cet Arc Hub Gar Fac Gar Res Gar Res Tes Gar Res Qua Sec Gar Acc Com Ac0 Matter Collected 16784 | 199 187 118 1478 575 169 249 . 230 . 130 528 268 62 212 59 211 65 363 148 80 522 346 265 361 304 617 1326 725 290 205 560 585 776 424 2388 1759 Remotely . | . . . . . . . . . . . . . . . . . . . . . . . . . . . . . . . . . . . . . Salvage Created 39688 | . 820 268 1346 1047 193 333 . 227 . 352 1330 610 62 812 215 690 1015 960 786 382 1359 1099 461 682 507 1009 3890 1470 1490 1586 1596 2339 2273 1481 2856 4142 Parts 1528 | . 51 16 105 55 13 16 . 3 . 17 62 40 5 40 6 13 32 24 28 8 52 33 19 26 14 22 153 50 54 57 64 103 48 45 72 182 Haulers Intercepted 16 | . 2 . 6 6 . . . . . . 2 . . . . . . . . . . . . . . . . . . . . . . . . . Recyclers Shooed 24 | . . . 5 3 1 . . . . . . . . . . . . 4 . . . . 2 . . . 9 . . . . . . . . . Parts Field Recycled 13 | . . . . . . . . . . . . 13 . . . . . . . . . . . . . . . . . . . . . . . . Retrieved Matter 249 | . . . . . . . . . . . . 249 . . . . . . . . . . . . . . . . . . . . . . . . Parts Self-Destructed . | . . . . . . . . . . . . . . . . . . . . . . . . . . . . . . . . . . . . . Prevented . | . . . . . . . . . . . . . . . . . . . . . . . . . . . . . . . . . . . . . Kills | -11 -10 -10 -9 -9 -8 -8 -7 -7 -7 -7 -7 -7 -6 -6 -5 -5 -5 -5 -5 -5 -5 -5 -4 -4 -3 -3 -3 -3 -3 -2 -2 -2 -2 -1 -1 -1 ------- Run | Scr Mat Min Mat Sto Mat Gar Fac Was Fac Gar Fac Gar Fac Gar Fac Was Fac Ext Cet Arc Hub Gar Fac Gar Res Gar Res Tes Gar Res Qua Sec Gar Acc Com Ac0 Combat Hostiles Destroyed 591 | . 15 10 34 16 5 13 . . . 5 30 19 1 19 1 2 19 14 17 4 22 17 11 11 8 12 51 20 23 22 18 33 26 19 28 46 Melee 2 | . . . . . . . . . . . . . . . . . . . . . . . . . . . . . . . . 2 . . . . Guns 5 | . 2 . . . . . . . . . . . . . . . . . 3 . . . . . . . . . . . . . . . . . Cannons 477 | . 12 10 34 15 5 11 . . . 4 23 12 1 18 . 1 17 11 2 3 20 15 10 8 8 8 46 15 20 18 17 26 17 16 23 31 AOE 24 | . . . . . . 2 . . . . 6 7 . . . . . . 8 . . . . 1 . . . . . . . . . . . . Classes Destroyed 21 | . 7 1 3 . . 1 . . . 1 2 1 . . . 2 . . . . . . . 1 . . . . . . 1 1 . . . . Worker 13 | . 2 . 2 1 . . . . . . 1 . . . 1 . . . . . 1 . . . . . 2 1 . . 1 . . 1 . . Builder 12 | . . . 3 2 1 . . . . . 2 . . . . . . 1 . . 1 . . . . . 1 . . . . 1 . . . . Tunneler 3 | . . . 2 . . . . . . . . . . . . . . . . . . . . . . . 1 . . . . . . . . . Hauler 16 | . 2 . 6 6 . . . . . . 2 . . . . . . . . . . . . . . . . . . . . . . . . . Recycler 13 | . 2 . 2 1 . . . . . . 1 . . . 1 . . . . . . . . . . . 5 . . 1 . . . . . . Operator 9 | . 1 . 1 2 . . . . . . . . . . . . . . . 1 . . . . . . . . . . . . . 1 3 . Watcher 17 | . 3 . 4 1 . . . . . . . . . . . . 1 1 1 . 2 . . . 1 . 1 . . . . . . . 2 . Swarmer 96 | . 3 5 6 . . 4 . . . 1 7 8 . 8 . . 4 . 8 . . . 6 5 . . 6 . 7 8 . 5 . 4 1 . Grunt 176 | . 12 4 19 7 5 7 . . . 1 12 5 . . . . 8 1 . . 9 14 . . 2 4 14 9 14 1 4 2 14 5 3 . Brawler 12 | . . . 2 . . . . . . . 1 1 . 2 . . 1 1 . . . . . . . 1 . 1 1 1 . . . . . . Duelist 15 | . . . . . . 2 . . . . 2 2 . . . . . 1 . . . 1 . . . 1 . 3 . 2 . . 1 . . . Protector 4 | . . . . . . . . . . . 1 . . . . . . . . . 1 . . . . . . . . 1 . . 1 . . . Sentry 82 | . . 1 7 10 . . . . . 3 3 . 1 5 . . . 5 . 4 4 1 2 1 1 3 7 1 . 5 2 7 6 2 1 . Demolisher 3 | . . . . . . . . . . . . . . . . . . 2 . . . . . . . . . . . . . . 1 . . . Specialist 1 | . . . . . . . . . . . . . . . . . . . . . . . . 1 . . . . . . . . . . . . Hunter 38 | . . . . . . . . . . . . 3 . 3 . . 1 2 1 . . . . 4 2 1 3 2 . 2 4 2 2 2 4 . Programmer 88 | . . . . . . . . . . . 4 . . . . . 5 1 . . 5 . 3 . 3 2 20 3 . 2 7 14 . 5 14 . Behemoth 12 | . . . . . . . . . . 1 . . . 1 1 . . 1 . . . 1 . 1 . 1 1 . 1 . . . 1 1 1 . Compactor 2 | . . . . . . . . . . . . . . . . 2 . . . . . . . . . . . . . . . . . . . . Cetus Guard 8 | . . . . . . . . . . . . . . . . . . . 8 . . . . . . . . . . . . . . . . . S7 Guard 1 | . . . . . . . . . . . . . . . . . . . . . . . . . . . . . . . . 1 . . . . M Guard 2 | . . . . . . . . . . . . . . . . . . . . . . . . . . . . . . . . . . . 2 . Enhanced Grunt 29 | . . . . . . . . . . . . . . . . . . . . . . . . . . . . . . . . . . . . 29 Enhanced Sentry 2 | . . . . . . . . . . . . . . . . . . . . . . . . . . . . . . . . . . . . 2 Enhanced Hunter 8 | . . . . . . . . . . . . . . . . . . . . . . . . . . . . . . . . . . . . 8 Lightning 3 | . . . . . . . . . . . . . . . . . . . . . 3 . . . . . . . . . . . . . . . Combat Programmer 2 | . . . . . . . . . . . . . . . . . . . . . . . . . . . . . . . . . . . 2 . Executioner 2 | . . . . . . . . . . . . . . . . . . . . . . . . . . . . . . . . 2 . . . . Fortress 1 | . . . . . . . . . . . . . . . . . . . . . . . . . . . . . . . 1 . . . . . Protovariant G 1 | . . . . . . . . . . . . . . . . . . . . . . . . . . . . 1 . . . . . . . . Thug 1 | . . . . . . . . . . 1 . . . . . . . . . . . . . . . . . . . . . . . . . . Savage 1 | . . . . . . . . . . . . . . . . . . 1 . . . . . . . . . . . . . . . . . . Martyr 2 | . . . . . . . . . . . . . . . . 2 . . . . . . . . . . . . . . . . . . . . Best Kill Streak 14 | . 5 3 14 7 4 4 . . . 2 6 8 1 4 1 1 6 5 5 2 7 7 4 3 3 2 12 7 10 7 3 5 4 4 4 4 Combat Bots Only 11 | . 3 3 7 3 3 4 . . . 2 6 8 1 4 1 1 6 5 4 2 5 7 4 3 3 2 11 6 10 7 3 5 4 4 4 4 Max Kills in Single Turn 4 | . 2 1 2 2 2 2 . . . 2 3 4 1 1 1 1 1 1 4 1 2 1 1 1 1 1 2 2 1 2 1 1 1 2 2 1 Gunslinging . | . . . . . . . . . . . . . . . . . . . . . . . . . . . . . . . . . . . . . Exploded 4 | . . . . . . 2 . . . . 3 4 . . . . . . 4 . . . . 1 . . . . . . . . . . . . Melee 1 | . . . . . . . . . . . . . . . . . . . . . . . . . . . . . . . . 1 . . . . Uniques/NPCs Destroyed 9 | . . . . . . . . . . . . . . . . . . . . . . . . . . . . . . . . . . . 2 7 MAIN.C Shell (-1/Command) MAIN.C (-1/Command) A8 (-1/Access_0) A6 (-1/Access_0) A5 (-1/Access_0) A4 (-1/Access_0) A2 (-1/Access_0) A3 (-1/Access_0) Architect (-1/Access_0) Combat | -11 -10 -10 -9 -9 -8 -8 -7 -7 -7 -7 -7 -7 -6 -6 -5 -5 -5 -5 -5 -5 -5 -5 -4 -4 -3 -3 -3 -3 -3 -2 -2 -2 -2 -1 -1 -1 -------- Run | Scr Mat Min Mat Sto Mat Gar Fac Was Fac Gar Fac Gar Fac Gar Fac Was Fac Ext Cet Arc Hub Gar Fac Gar Res Gar Res Tes Gar Res Qua Sec Gar Acc Com Ac0 Damage Taken 49061 | . 465 358 874 471 135 432 . . . 245 1169 301 37 793 262 . 768 671 1517 644 2283 793 754 995 914 885 3832 2501 2052 1303 1258 1654 1644 1200 1852 15999 Core 2469 | . 79 86 79 31 9 23 . . . 11 75 41 4 69 . . 29 26 147 . 123 38 19 33 55 37 161 105 104 42 253 112 69 99 145 365 Absorbed by Shields 28526 | . . . . . 51 168 . . . 99 378 115 18 314 94 . 283 243 143 . 403 46 265 . . 41 1015 626 1812 858 330 1639 1719 885 1208 15773 Reduced by Siege Mode 2147 | . . . . . . . . . . . 14 3 . 27 14 . 12 . 48 37 84 86 50 40 29 61 271 222 177 73 45 104 60 36 67 587 Redirected to Core 212 | . . . . . . . . . . . . . . . . . . . . . . . . . . . . . . . 212 . . . . . Core Remaining (%) 71 | 100 . 34 . 72 . 94 . . . . . 81 . 91 . . . . . . . 63 . 95 . . . . 64 . . . 44 . . 47 Volleys Fired 2138 | . 55 20 86 50 11 33 . 5 4 17 63 30 7 35 20 27 58 68 35 36 80 56 27 39 40 54 196 72 68 48 52 124 103 100 128 291 Largest 6 | . 2 2 3 3 3 3 . 2 1 3 3 3 3 3 3 3 3 3 3 2 3 3 3 3 3 3 3 3 3 4 4 2 2 3 4 6 Hottest 500 | . 120 120 146 146 146 187 . 148 39 187 178 178 178 178 165 165 165 190 245 155 270 270 270 270 265 278 315 250 250 290 240 160 300 280 400 500 Shots Fired 5439 | . 110 40 222 136 31 93 . 10 4 36 154 74 9 93 32 48 150 145 87 57 210 138 78 77 89 114 468 176 189 156 145 223 180 210 351 1104 Gun 28 | . 18 . . . . . . . . . . . . . . . . . 10 . . . . . . . . . . . . . . . . . Cannon 5187 | . 92 40 222 135 30 92 . 10 4 36 143 72 7 93 24 41 148 123 74 57 209 133 78 65 82 101 450 164 187 155 136 209 164 187 320 1104 Launcher 12 | . . . . 1 1 1 . . . . 4 2 . . . . . . 3 . . . . . . . . . . . . . . . . . Special 212 | . . . . . . . . . . . 7 . 2 . 8 7 2 22 . . 1 5 . 12 7 13 18 12 2 1 9 14 16 23 31 . Kinetic 766 | . 18 6 206 86 20 49 . . 4 14 50 22 5 22 . . . 7 1 1 45 1 . 1 31 6 33 . . . . . . . 66 72 Thermal 4437 | . 92 34 16 49 10 43 . 10 . 22 93 50 2 71 24 41 148 116 74 56 164 132 78 64 51 95 417 161 187 155 136 209 164 187 254 1032 Explosive 12 | . . . . 1 1 1 . . . . 4 2 . . . . . . 3 . . . . . . . . . . . . . . . . . Electromagnetic 12 | . . . . . . . . . . . . . . . . . . . 9 . . . . . . . . 3 . . . . . . . . Robot Hit Streak 48 | . 17 5 11 18 9 17 . 12 . 7 20 20 5 18 19 8 17 18 20 20 24 32 19 10 17 16 28 48 26 28 27 29 44 30 30 46 Robot Miss Streak 8 | . 5 2 6 8 1 3 . 1 . 2 4 3 . 2 1 1 4 3 2 2 2 3 1 2 2 3 5 5 3 2 3 2 2 3 5 2 Penetration Max . | . . . . . . . . . . . . . . . . . . . . . . . . . . . . . . . . . . . . . Secondary Targets . | . . . . . . . . . . . . . . . . . . . . . . . . . . . . . . . . . . . . . Shots Hit Robots 3768 | . 74 23 142 73 21 58 . 9 . 21 97 44 4 55 23 42 90 107 72 48 137 97 51 49 58 68 322 125 127 106 102 168 153 104 216 882 Core Hits 1457 | . 27 13 101 30 11 21 . 2 . 11 53 31 2 26 5 12 37 36 38 16 52 35 15 18 17 24 108 38 39 45 36 59 47 29 63 360 Critical Kills 63 | . . . . 1 . . . . . 1 . . . . 1 1 2 3 2 1 2 . 1 2 1 3 3 3 1 3 . 2 8 2 4 16 Critical Parts Destroyed 15 | . . . . . . . . . . . . . . . . . . . . . . . . . . . . . . . . 1 2 . . 12 Critical Strikes 104 | . . . 3 2 . 1 . . . 2 2 1 . 1 1 1 2 4 2 1 3 . 1 2 2 3 4 3 1 3 . 3 10 3 7 36 Meltdown 61 | . . . . 1 . . . . . 1 . . . . 1 1 2 3 2 1 2 . 1 2 1 3 3 3 1 3 . 2 7 2 4 15 Destroy 26 | . . . . . . . . . . . . . . . . . . . . . . . . . . . . . . . . 1 3 1 . 21 Blast 17 | . . . 3 1 . 1 . . . 1 2 1 . 1 . . . 1 . . 1 . . . 1 . 1 . . . . . . . 3 . Melee Attacks 101 | . . . . . . . . . . . . . . . . 6 . . . . . . . . . . . . . . 3 25 5 22 26 14 Kinetic 16 | . . . . . . . . . . . . . . . . . . . . . . . . . . . . . . . 2 8 1 4 1 . Impact . | . . . . . . . . . . . . . . . . . . . . . . . . . . . . . . . . . . . . . Slashing 79 | . . . . . . . . . . . . . . . . . . . . . . . . . . . . . . . 1 17 4 18 25 14 Piercing 6 | . . . . . . . . . . . . . . . . 6 . . . . . . . . . . . . . . . . . . . . Sneak Attacks 10 | . . . . . . . . . . . . . . . . 6 . . . . . . . . . . . . . . . . . 4 . . Combat Hostiles 2 | . . . . . . . . . . . . . . . . . . . . . . . . . . . . . . . . . . 2 . . Follow-up Attacks 1 | . . . . . . . . . . . . . . . . . . . . . . . . . . . . . . . . . . 1 . . Damage Inflicted 132994 | . 1270 457 3246 1808 548 1397 . 228 . 564 3447 1707 54 1754 572 1771 2835 3201 2700 1354 4549 2502 1577 1075 1776 2139 12387 4757 4404 3769 3795 6686 5979 4651 8745 35290 Guns 221 | . 116 . . . . . . . . . . . . . . . . . 105 . . . . . . . . . . . . . . . . . Cannons 127278 | . 1129 455 3208 1728 548 1267 . 228 . 564 2691 1131 54 1754 560 1060 2833 3081 2012 1354 4472 2502 1548 1075 1776 2139 12205 4637 4404 3766 3750 6102 5979 3611 8745 34910 Explosions 2150 | . . . . . . 130 . . . . 748 576 . . . . . . 583 . . . . . . . . 113 . . . . . . . . Melee 2712 | . . . . . . . . . . . . . . . . 663 . . . . . . . . . . . . . . 45 584 . 1040 . 380 Ramming 633 | . 25 2 38 80 . . . . . . 8 . . . 12 48 2 120 . . 77 . 29 . . . 182 7 . 3 . . . . . . Kinetic 13679 | . 116 75 3039 1025 362 599 . . . 241 738 293 . 265 . . . 184 . 30 858 . . . 701 30 1028 . . . 45 292 . 301 2020 1437 Thermal 114334 | . 1129 380 169 703 186 668 . 228 . 323 1953 838 54 1489 560 1060 2833 2897 2012 1324 3614 2502 1548 1075 1075 2109 11177 4618 4404 3766 3750 6102 5979 3611 6725 33473 Explosive 2037 | . . . . . . 130 . . . . 748 576 . . . . . . 583 . . . . . . . . . . . . . . . . . Electromagnetic 237 | . . . . . . . . . . . . . . . . . . . 105 . . . . . . . . 132 . . . . . . . . Impact . | . . . . . . . . . . . . . . . . . . . . . . . . . . . . . . . . . . . . . Slashing 1411 | . . . . . . . . . . . . . . . . . . . . . . . . . . . . . . . . 292 . 739 . 380 Piercing 663 | . . . . . . . . . . . . . . . . 663 . . . . . . . . . . . . . . . . . . . . Highest Corruption 34 | . . . 4 4 . . . . . . . 1 . . . . 2 2 . . 16 16 1 1 5 3 10 9 34 1 2 3 3 . 2 2 Average Corruption 2 | . . . 3 4 . . . . . . . 1 . . . . 1 1 . . 5 9 1 1 2 2 2 7 9 1 1 2 3 . 1 1 Corruption Purged 38 | . . . . . . . . . . . . 1 . . . . 2 2 . . . 7 . . 5 4 12 . . . . . . . 2 3 Effects 375 | . . . 20 26 . . . . . . . . . . . . 2 7 . . 23 41 3 10 5 15 33 27 45 1 5 29 44 . 27 12 Message Errors 124 | . . . 6 10 . . . . . . . . . . . . . 5 . . 6 9 3 8 1 5 12 7 13 1 1 9 13 . 10 5 Matter Fused 64 | . . . 2 7 . . . . . . . . . . . . . . . . 3 13 . . . 4 5 7 9 . . 3 11 . . . Heat Flow Errors 45 | . . . 6 2 . . . . . . . . . . . . 1 . . . 2 4 . . 1 2 4 4 7 . 1 5 3 . 3 . Energy Discharges 52 | . . . 2 3 . . . . . . . . . . . . 1 . . . 3 6 . 1 . 3 1 3 4 . 1 6 7 . 6 5 Parts Rejected 1 | . . . . . . . . . . . . . . . . . . . . . . . . . . . 1 . . . . . . . . . Data Loss (minor) 60 | . . . 4 4 . . . . . . . . . . . . . 1 . . 5 5 . 1 2 1 6 3 5 . 2 4 8 . 8 1 Data Loss (major) 4 | . . . . . . . . . . . . . . . . . . . . . 1 1 . . . . . 1 1 . . . . . . . Misfires 5 | . . . . . . . . . . . . . . . . . . . . . . 1 . . . . . 1 3 . . . . . . . Misdirections 1 | . . . . . . . . . . . . . . . . . . . . . 1 . . . . . . . . . . . . . . . Weapon Failures 19 | . . . . . . . . . . . . . . . . . . 1 . . 2 2 . . 1 . 4 1 3 . . 2 2 . . 1 Overload Shots 1 | . . . . . . . . . . . . . . . . . . 1 . . . . . . . . . . . . . . . . . . Overflow Damage 2937 | . 19 . 55 . 11 35 . . . . 47 . . 5 . 26 16 25 28 27 169 3 52 19 4 17 449 145 111 42 153 193 161 102 554 469 Projectiles 2730 | . 19 . 55 . 11 35 . . . . 47 . . 5 . . 16 4 . 27 159 3 52 19 4 17 402 145 111 42 153 118 161 102 554 469 Explosions 28 | . . . . . . . . . . . . . . . . . . . 28 . . . . . . . . . . . . . . . . . Melee 179 | . . . . . . . . . . . . . . . . 26 . 21 . . 10 . . . . . 47 . . . . 75 . . . . Knockbacks 125 | . . . 35 5 5 9 . . . 1 6 3 . 1 . . . 2 . . 7 . 1 . 9 1 13 . . . . . . . 14 13 Impact 8 | . . . 1 1 . . . . . . . . . . . . . 2 . . . . 1 . . . 3 . . . . . . . . . Kinetic 114 | . . . 33 4 4 9 . . . 1 6 3 . 1 . . . . . . 7 . . . 8 1 10 . . . . . . . 14 13 Secondary 3 | . . . 1 . 1 . . . . . . . . . . . . . . . . . . . 1 . . . . . . . . . . . Self-Inflicted Damage 101 | . . . . . . . . . . . . . . . . . . . . . . . . . . . . 101 . . . . . . . . Shots 1 | . . . . . . . . . . . . . . . . . . . . . . . . . . . . 1 . . . . . . . . Rammed 50 | . 2 2 6 11 . . . . . . 2 . . . 1 6 1 6 . 1 4 . 3 . . . 3 1 . 1 . . . . . . Targets Rammed 60 | . 4 2 7 13 . . . . . . 2 . . . 1 6 1 7 . 1 5 . 3 . . . 6 1 . 1 . . . . . . Kicked 1 | . 1 . . . . . . . . . . . . . . . . . . . . . . . . . . . . . . . . . . . Crushed 9 | . 1 . 1 2 . . . . . . . . . . . . . 1 . . 1 . . . . . 3 . . . . . . . . . Highest Temperature 453 | . 246 207 243 260 13 8 . . . . 290 179 33 108 39 88 198 199 253 9 267 314 . 162 144 292 453 226 199 . 204 185 235 243 362 111 Average Temperature 74 | . 67 64 74 71 7 4 . . . . 70 48 22 33 18 43 100 101 131 4 51 134 . 72 65 102 76 49 93 . 92 68 81 87 72 37 Received Heat Transfer 5820 | . 255 183 360 162 85 180 . . . 48 253 30 8 90 36 . 240 77 126 72 395 306 63 27 120 133 497 453 280 127 120 112 212 96 135 539 Effects 15 | . . . 3 . . . . . . . . . . . . . . . . . . 3 . . . 1 6 . . . . . . 2 . . Shutdowns 1 | . . . . . . . . . . . . . . . . . . . . . . . . . . . 1 . . . . . . . . . Energy Bleed 2 | . . . . . . . . . . . . . . . . . . . . . . . . . . 1 . . . . . . . 1 . . Interference 9 | . . . 3 . . . . . . . . . . . . . . . . . . 3 . . . . 2 . . . . . . 1 . . Damage (major) 3 | . . . . . . . . . . . . . . . . . . . . . . . . . . . 3 . . . . . . . . . Siege Activations 139 | . . . . . . . . . . . 4 5 . 2 1 . 1 . 3 4 5 4 3 3 3 4 13 5 10 5 7 16 9 3 8 21 Total Turns 3059 | . . . . . . . . . . . 71 103 . 34 37 . 16 . 42 143 116 64 54 135 53 81 288 147 183 86 91 313 274 69 134 525 Longest Duration 110 | . . . . . . . . . . . 29 57 . 24 37 . 16 . 25 75 60 28 18 110 23 35 44 50 85 45 37 44 85 42 47 102 Robots Corrupted 1 | . . . . . . . . . . . . . . . . . . . . . . . . . . . . 1 . . . . . . . . Combat Hostiles 1 | . . . . . . . . . . . . . . . . . . . . . . . . . . . . 1 . . . . . . . . Parts Fried 2 | . . . . . . . . . . . . . . . . . . 1 . . . . . . . . . 1 . . . . . . . . Impact Corruptions 5 | . . . . . . . . . . . . . . . . . . 2 . . 1 . . . . . 2 . . . . . . . . . Robots Melted 79 | . 1 . . 1 . . . . . 1 1 . . 1 1 1 2 3 4 1 3 2 1 2 1 4 5 4 3 4 . 4 8 2 4 15 Combat Hostiles 77 | . 1 . . 1 . . . . . 1 1 . . 1 1 1 2 3 4 1 2 2 1 2 . 4 5 4 3 4 . 4 8 2 4 15 Parts Melted 342 | . 5 1 . 4 1 1 . . . 6 4 2 . 7 9 3 11 9 8 8 13 9 9 8 2 17 34 11 12 10 6 24 20 10 30 48 Heat Transferred 105532 | . 2331 777 333 1184 333 1227 . 435 . 596 2627 1147 74 2033 757 1391 3572 4061 2979 1873 4599 3367 1924 1430 1210 2998 11318 4490 4380 3459 3441 5402 4101 3145 4722 17816 Parts Sabotaged . | . . . . . . . . . . . . . . . . . . . . . . . . . . . . . . . . . . . . . Parts Stolen . | . . . . . . . . . . . . . . . . . . . . . . . . . . . . . . . . . . . . . Parts Stripped . | . . . . . . . . . . . . . . . . . . . . . . . . . . . . . . . . . . . . . Power Chain Reactions 1 | . . . . . . . . . . . . . . . . . . . . . . . . . . . . 1 . . . . . . . . Missiles Intercepted 14 | . . . . . . . . . . . . . . . . . . . . . . . . . . . . . . . . . 4 . 10 . Alert | -11 -10 -10 -9 -9 -8 -8 -7 -7 -7 -7 -7 -7 -6 -6 -5 -5 -5 -5 -5 -5 -5 -5 -4 -4 -3 -3 -3 -3 -3 -2 -2 -2 -2 -1 -1 -1 ------- Run | Scr Mat Min Mat Sto Mat Gar Fac Was Fac Gar Fac Gar Fac Gar Fac Was Fac Ext Cet Arc Hub Gar Fac Gar Res Gar Res Tes Gar Res Qua Sec Gar Acc Com Ac0 Peak Influence 1529 | . 358 168 599 774 215 562 294 50 38 762 1529 1357 809 1151 649 304 1220 1058 824 453 369 772 557 677 423 430 612 600 676 740 403 297 728 528 358 . Initial 743 | . . . . 72 49 139 294 50 . 26 399 743 711 566 604 227 . 539 592 300 . 258 405 380 380 81 241 189 137 380 355 46 18 436 19 . Average 383 | . 130 64 328 264 86 420 255 35 15 557 771 971 736 854 616 165 918 412 717 221 135 632 414 580 299 291 277 268 472 561 205 107 469 177 157 . Maximum Alert Level 4 | . 1 . 2 3 1 2 1 . . 3 4 4 3 4 2 1 4 3 3 2 1 3 2 2 2 2 2 2 2 3 2 1 3 2 3 . Low Security (%) 29 | . 78 100 21 64 88 7 25 100 100 9 . . . . . 51 3 15 . 41 71 . . . 13 21 26 40 10 . 65 88 13 76 15 . Level 1 20 | . 21 . 47 9 11 22 74 . . 7 10 . . . . 48 2 48 . 42 28 6 37 3 62 47 59 41 28 9 31 11 13 2 10 . Level 2 27 | . . . 30 24 . 69 . . . 51 42 . . 30 100 . 10 17 35 15 . 35 62 96 23 30 13 17 61 77 2 . 52 20 20 . Level 3 20 | . . . . . . . . . . 30 39 81 100 48 . . 52 18 64 . . 58 . . . . . . . 13 . . 20 . 53 . Level 4 1 | . . . . . . . . . . . 7 18 . 20 . . 31 . . . . . . . . . . . . . . . . . . . Level 5 . | . . . . . . . . . . . . . . . . . . . . . . . . . . . . . . . . . . . . . High Security . | . . . . . . . . . . . . . . . . . . . . . . . . . . . . . . . . . . . . . Max Security . | . . . . . . . . . . . . . . . . . . . . . . . . . . . . . . . . . . . . . Squads Dispatched 98 | . 3 1 5 4 2 . . . 1 . 9 . 1 . . . 6 3 . . 7 . 4 . 5 . 11 7 . 6 3 11 . 3 6 . Investigation 11 | . 2 1 2 2 . . . . . . . . . . . . . . . . . . 1 . 1 . . 1 . . . 1 . . . . Extermination 38 | . . . . . . . . . . . 4 . . . . . 2 . . . 2 . 2 . 2 . 5 1 . 1 3 7 . 3 6 . Reinforcement 23 | . 1 . 2 2 1 . . . . . 3 . . . . . 2 1 . . 3 . 1 . 2 . 4 1 . . . . . . . . Assault 9 | . . . 1 . . . . . . . 2 . . . . . 2 2 . . . . . . . . . . . 2 . . . . . . Garrison 17 | . . . . . 1 . . . 1 . . . 1 . . . . . . . 2 . . . . . 2 4 . 3 . 3 . . . . Intercept . | . . . . . . . . . . . . . . . . . . . . . . . . . . . . . . . . . . . . . Construction Impeded 1 | . . . . . . . . . . . 1 . . . . . . . . . . . . . . . . . . . . . . . . . Haulers Reinforced 2 | . . . . . . . . . . . . . . . . . . . . . . . . . . . 2 . . . . . . . . . Cargo Convoy Interrupts 2 | . . . . . . . . . . . 1 . . . . . . . . . . . 1 . . . . . . . . . . . . . Alert ID Control Effect 20 | . . . . . . . . . . . . . . . . . . . . . . . . 2 1 2 5 . . . . 3 5 . 2 . Stealth | -11 -10 -10 -9 -9 -8 -8 -7 -7 -7 -7 -7 -7 -6 -6 -5 -5 -5 -5 -5 -5 -5 -5 -4 -4 -3 -3 -3 -3 -3 -2 -2 -2 -2 -1 -1 -1 --------- Run | Scr Mat Min Mat Sto Mat Gar Fac Was Fac Gar Fac Gar Fac Gar Fac Was Fac Ext Cet Arc Hub Gar Fac Gar Res Gar Res Tes Gar Res Qua Sec Gar Acc Com Ac0 Distress Signals 38 | . . . 3 4 3 . . . . . 2 . . . . . . 1 2 1 . . . . . . 2 . . . . . . . 20 . Communications Jammed 459 | . . . . . . . . . . . . . . . . . 171 72 . . 39 . . . 10 . 22 1 . 41 . 68 13 11 11 . Distress Signals 459 | . . . . . . . . . . . . . . . . . 171 72 . . 39 . . . 10 . 22 1 . 41 . 68 13 11 11 . Times Spotted 1004 | . 26 11 55 30 9 13 . . . 18 46 17 1 23 1 6 41 48 20 12 41 22 14 26 18 22 79 28 28 31 26 55 48 36 63 90 Peak Tracking Total 11 | . 3 3 6 4 4 4 . . . 6 6 5 1 6 1 3 7 11 5 2 7 4 4 7 4 4 5 5 6 6 4 5 5 4 4 5 Tactical Retreats 45 | . 1 . 1 . . . . . . . 3 1 . 2 . . . . . 1 5 1 1 4 . 2 1 6 5 1 1 3 5 . 1 . Traps | -11 -10 -10 -9 -9 -8 -8 -7 -7 -7 -7 -7 -7 -6 -6 -5 -5 -5 -5 -5 -5 -5 -5 -4 -4 -3 -3 -3 -3 -3 -2 -2 -2 -2 -1 -1 -1 ------- Run | Scr Mat Min Mat Sto Mat Gar Fac Was Fac Gar Fac Gar Fac Gar Fac Was Fac Ext Cet Arc Hub Gar Fac Gar Res Gar Res Tes Gar Res Qua Sec Gar Acc Com Ac0 Traps Triggered 37 | . . . 6 . . 1 1 . . 2 1 . . . 1 . . . . . . 1 3 7 . 3 2 . . . . . 1 3 5 . Indirectly . | . . . . . . . . . . . . . . . . . . . . . . . . . . . . . . . . . . . . . Trap Hack Attempts . | . . . . . . . . . . . . . . . . . . . . . . . . . . . . . . . . . . . . . Triggered . | . . . . . . . . . . . . . . . . . . . . . . . . . . . . . . . . . . . . . Disarmed . | . . . . . . . . . . . . . . . . . . . . . . . . . . . . . . . . . . . . . Reprogrammed . | . . . . . . . . . . . . . . . . . . . . . . . . . . . . . . . . . . . . . Reused . | . . . . . . . . . . . . . . . . . . . . . . . . . . . . . . . . . . . . . Traps Extracted . | . . . . . . . . . . . . . . . . . . . . . . . . . . . . . . . . . . . . . Installed 1 | . . 1 . . . . . . . . . . . . . . . . . . . . . . . . . . . . . . . . . . Triggered 2 | . . 1 . . . . . . . . 1 . . . . . . . . . . . . . . . . . . . . . . . . . Machines | -11 -10 -10 -9 -9 -8 -8 -7 -7 -7 -7 -7 -7 -6 -6 -5 -5 -5 -5 -5 -5 -5 -5 -4 -4 -3 -3 -3 -3 -3 -2 -2 -2 -2 -1 -1 -1 ---------- Run | Scr Mat Min Mat Sto Mat Gar Fac Was Fac Gar Fac Gar Fac Gar Fac Was Fac Ext Cet Arc Hub Gar Fac Gar Res Gar Res Tes Gar Res Qua Sec Gar Acc Com Ac0 Machines Disabled 109 | . 2 . 4 3 . 1 . . . 1 13 6 . 3 . . 9 7 1 2 . 4 . 3 . 3 2 2 4 . 7 7 5 1 8 11 Max in Single Turn 2 | . 1 . 1 1 . 1 . . . . 1 2 . 1 . . 2 1 1 1 . 1 . 1 . 1 1 1 1 . 1 2 1 1 2 1 Garrison Access 7 | . . . . . . . . . . . . . . . . . . . . . 1 . . . . . 2 . . . 1 . . 3 . . Garrison Relay 17 | . . . . . . 1 . . . . . 2 . 2 . . . . . . . 2 . 2 . 2 . . 2 . . . 4 . . . Phase Generator 1 | . . . . . . . . . . . . . . . . . . . . . . . . . . . . . . . . . . . 1 . Network Hub 1 | . . . . . . . . . . . . . . . . . . . . . 1 . . . . . . . . . . . . . . . Energy Cycler 2 | . . . . . . . . . . . . . . . . . . 2 . . . . . . . . . . . . . . . . . . Machines Sabotaged . | . . . . . . . . . . . . . . . . . . . . . . . . . . . . . . . . . . . . . Garrisons Compromised 1 | . . . . . . . . . . . 1 . . . . . . . . . . . . . . . . . . . . . . . . . Overloaded Fab Kills . | . . . . . . . . . . . . . . . . . . . . . . . . . . . . . . . . . . . . . Fab Network Shutdowns . | . . . . . . . . . . . . . . . . . . . . . . . . . . . . . . . . . . . . . Hacking | -11 -10 -10 -9 -9 -8 -8 -7 -7 -7 -7 -7 -7 -6 -6 -5 -5 -5 -5 -5 -5 -5 -5 -4 -4 -3 -3 -3 -3 -3 -2 -2 -2 -2 -1 -1 -1 --------- Run | Scr Mat Min Mat Sto Mat Gar Fac Was Fac Gar Fac Gar Fac Gar Fac Was Fac Ext Cet Arc Hub Gar Fac Gar Res Gar Res Tes Gar Res Qua Sec Gar Acc Com Ac0 Machines Accessed 132 | . 10 2 12 12 2 . 1 . 1 . 7 . 2 . 1 . 3 12 . . 8 . 5 . 2 . 11 4 . 4 3 16 . 9 4 1 Terminals 92 | . 7 1 9 9 . . 1 . . . 6 . 1 . 1 . 2 11 . . 6 . 1 . 1 . 6 2 . 3 2 13 . 6 4 . Fabricators 3 | . . . . . . . . . . . . . . . . . 1 . . . . . . . . . 1 . . 1 . . . . . . Repair Stations 9 | . 1 . 2 1 1 . . . . . . . . . . . . 1 . . . . 1 . . . 1 1 . . . . . . . . Recycling Units 6 | . 2 . 1 2 . . . . . . . . . . . . . . . . . . 1 . . . . . . . . . . . . . Scanalyzers 4 | . . . . . . . . . . . . . . . . . . . . . . . 1 . . . 1 . . . . 2 . . . . Garrison Access 16 | . . . . . 1 . . . 1 . 1 . 1 . . . . . . . 2 . 1 . 1 . 2 1 . . 1 1 . 3 . . Total Hacks 395 | . 35 7 40 33 3 . 3 . 5 . 11 . 5 . 4 . 6 30 . . 25 . 15 . 5 . 34 16 . 17 15 59 . 18 6 3 Successful 196 | . 23 4 19 20 2 . 1 . 2 . 2 . 3 . 2 . 1 17 . . 14 . 9 . 2 . 14 8 . 3 11 27 . 8 1 3 Failed 197 | . 11 3 20 13 1 . 2 . 3 . 9 . 2 . 2 . 5 13 . . 11 . 6 . 3 . 20 8 . 14 4 32 . 10 5 . Catastrophic 45 | . 2 . 4 . . . . . . . 3 . . . . . . 4 . . 1 . 1 . 2 . 7 2 . 3 . 6 . 7 3 . Database Lockouts 2 | . 1 . 1 . . . . . . . . . . . . . . . . . . . . . . . . . . . . . . . . . Manual 162 | . 16 6 13 7 . . 1 . 4 . 3 . 2 . . . 4 12 . . 14 . 5 . 2 . 14 11 . 6 5 27 . 5 5 . Terminals 293 | . 31 6 34 21 . . 3 . . . 9 . 3 . 4 . 5 28 . . 21 . 2 . 2 . 14 12 . 12 14 52 . 14 6 . Fabricators 9 | . . . . . . . . . . . . . . . . . 1 . . . . . . . . . 3 . . 5 . . . . . . Repair Stations 30 | . 2 . 5 9 2 . . . . . . . . . . . . 2 . . . . 3 . . . 5 2 . . . . . . . . Recycling Units 10 | . 2 . 1 3 . . . . . . . . . . . . . . . . . . 4 . . . . . . . . . . . . . Scanalyzers 11 | . . . . . . . . . . . . . . . . . . . . . . . 3 . . . 2 . . . . 6 . . . . Garrison Access 38 | . . . . . 1 . . . 5 . 2 . 2 . . . . . . . 4 . 3 . 3 . 10 2 . . 1 1 . 4 . . Terminal Hacks 104 | . 17 4 13 11 . . 1 . . . 1 . 1 . 2 . 1 12 . . 6 . . . . . 4 3 . 2 7 12 . 3 1 3 Part Schematic 2 | . 2 . . . . . . . . . . . . . . . . . . . . . . . . . . . . . . . . . . . Robot Analysis 4 | . 3 . 1 . . . . . . . . . . . . . . . . . . . . . . . . . . . . . . . . . Prototype ID Bank 23 | . 7 3 3 1 . . . . . . . . 1 . 1 . . 1 . . 2 . . . . . . 1 . . . 3 . . . . Open Door 16 | . . 1 . 4 . . . . . . . . . . . . . 5 . . . . . . . . . . . . . 4 . 1 1 . Level Access Points 1 | . . . . . . . . . . . . . . . . . . . . . . . . . . . . . . 1 . . . . . . Branch Access Points 3 | . . . . . . . . . . . . . . . 1 . 1 . . . . . . . . . 1 . . . . . . . . . Emergency Access Points 3 | . . . 1 . . . . . . . . . . . . . . . . . 1 . . . . . . . . . 1 . . . . . Terminal Index 4 | . 1 . . . . . . . . . . . . . . . . . . . . . . . . . 1 . . 1 . . . 1 . . Alert Level 3 | . . . 1 2 . . . . . . . . . . . . . . . . . . . . . . . . . . . . . . . . Unreport Threat 19 | . 1 . 3 3 . . 1 . . . . . . . . . . 3 . . 1 . . . . . 1 1 . . 2 2 . 1 . . Locate Traps 7 | . 1 . . . . . . . . . 1 . . . . . . 3 . . . . . . . . 1 . . . . 1 . . . . Dispatch Records 1 | . . . . . . . . . . . . . . . . . . . . . . . . . . . . . . . 1 . . . . . Patrol Status 1 | . . . . . . . . . . . . . . . . . . . . . . . . . . . . . . . 1 . . . . . Recall Investigation 1 | . . . 1 . . . . . . . . . . . . . . . . . . . . . . . . . . . . . . . . . Recall Reinforcements 2 | . 1 . . 1 . . . . . . . . . . . . . . . . . . . . . . . . . . . . . . . . Recall Assault 1 | . . . 1 . . . . . . . . . . . . . . . . . . . . . . . . . . . . . . . . . Hauler Manifests 3 | . . . 1 . . . . . . . . . . . . . . . . . . . . . . . . . . . 1 1 . . . . Zone Layout 7 | . 1 . 1 . . . . . . . . . . . . . . . . . 2 . . . . . . 1 . . 1 1 . . . . Gate Test 138-A 1 | . . . . . . . . . . . . . . . . . . . . . . . . . . . . . . . . . . . . 1 Gate Test 138-B 1 | . . . . . . . . . . . . . . . . . . . . . . . . . . . . . . . . . . . . 1 Gate Test 138-END 1 | . . . . . . . . . . . . . . . . . . . . . . . . . . . . . . . . . . . . 1 Fabricator Hacks . | . . . . . . . . . . . . . . . . . . . . . . . . . . . . . . . . . . . . . Repair Station Hacks 18 | . 2 . 3 5 1 . . . . . . . . . . . . 2 . . . . 1 . . . 2 2 . . . . . . . . Scan Component 11 | . 1 . 2 3 1 . . . . . . . . . . . . 1 . . . . 1 . . . 1 1 . . . . . . . . Repair 7 | . 1 . 1 2 . . . . . . . . . . . . . 1 . . . . . . . . 1 1 . . . . . . . . Recycling Unit Hacks 1 | . . . . . . . . . . . . . . . . . . . . . . . 1 . . . . . . . . . . . . . Retrieve Components 1 | . . . . . . . . . . . . . . . . . . . . . . . 1 . . . . . . . . . . . . . Scanalyzer 8 | . . . . . . . . . . . . . . . . . . . . . . . 3 . . . 2 . . . . 3 . . . . Insert Component 5 | . . . . . . . . . . . . . . . . . . . . . . . 1 . . . 1 . . . . 3 . . . . Analyze 3 | . . . . . . . . . . . . . . . . . . . . . . . 2 . . . 1 . . . . . . . . . Garrison Access Hacks 17 | . . . . . 1 . . . 1 . 1 . 1 . . . . . . . 2 . 1 . 1 . 3 1 . . 1 1 . 3 . . Unlock Access 9 | . . . . . 1 . . . 1 . 1 . 1 . . . . . . . 1 . 1 . 1 . . 1 . . . 1 . . . . Seal Access 7 | . . . . . . . . . . . . . . . . . . . . . 1 . . . . . 2 . . . 1 . . 3 . . Coupler Status 1 | . . . . . . . . . . . . . . . . . . . . . . . . . . . 1 . . . . . . . . . Unauthorized Hacks 48 | . 4 . 3 4 . . . . 1 . . . 1 . . . . 3 . . 6 . 3 . 1 . 3 2 . 1 3 11 . 2 . . Terminals 33 | . 2 . 2 2 . . . . . . . . . . . . . 3 . . 6 . . . . . . 2 . 1 3 10 . 2 . . Track 10 | . . . . . . . . . . . . . . . . . . . . . 4 . . . . . . 1 . . 1 3 . 1 . . Botnet 15 | . 2 . 1 1 . . . . . . . . . . . . . 2 . . 1 . . . . . . 1 . 1 1 4 . 1 . . Disrupt 2 | . . . . . . . . . . . . . . . . . . . . . . . . . . . . . . . . 2 . . . . Operators 6 | . . . 1 1 . . . . . . . . . . . . . 1 . . 1 . . . . . . . . . 1 1 . . . . Fabricators 2 | . . . . . . . . . . . . . . . . . . . . . . . . . . . 2 . . . . . . . . . Report 1 | . . . . . . . . . . . . . . . . . . . . . . . . . . . 1 . . . . . . . . . Haulers 1 | . . . . . . . . . . . . . . . . . . . . . . . . . . . 1 . . . . . . . . . Repair Stations . | . . . . . . . . . . . . . . . . . . . . . . . . . . . . . . . . . . . . . Recycling Units 7 | . 2 . 1 2 . . . . . . . . . . . . . . . . . . 2 . . . . . . . . . . . . . Recyclers 1 | . . . . . . . . . . . . . . . . . . . . . . . 1 . . . . . . . . . . . . . Mask 1 | . . . . . . . . . . . . . . . . . . . . . . . 1 . . . . . . . . . . . . . Tunnel 5 | . 2 . 1 2 . . . . . . . . . . . . . . . . . . . . . . . . . . . . . . . . Scanalyzers 1 | . . . . . . . . . . . . . . . . . . . . . . . . . . . . . . . . 1 . . . . Researchers 1 | . . . . . . . . . . . . . . . . . . . . . . . . . . . . . . . . 1 . . . . Garrison Access 5 | . . . . . . . . . 1 . . . 1 . . . . . . . . . 1 . 1 . 1 . . . . . . . . . Reprogram 4 | . . . . . . . . . 1 . . . 1 . . . . . . . . . 1 . . . 1 . . . . . . . . . Eject 1 | . . . . . . . . . . . . . . . . . . . . . . . . . 1 . . . . . . . . . . . Data Cores Recovered 5 | . 1 . . 1 . . . . . . . . . . . . . . . . . . . . . . . . . . . . . 1 2 . Used . | . . . . . . . . . . . . . . . . . . . . . . . . . . . . . . . . . . . . . Hacking Detections 106 | . 8 1 11 6 1 . 1 . 1 . 7 . 2 . 1 . 3 10 . . 7 . 5 . 1 . 11 4 . 4 1 11 . 7 3 . Full Trace Events 4 | . . . 1 . . . . . . . . . . . . . . . . . . . 1 . . . . 1 . . . 1 . . . . Feedback Events . | . . . . . . . . . . . . . . . . . . . . . . . . . . . . . . . . . . . . . Feedback Blocked . | . . . . . . . . . . . . . . . . . . . . . . . . . . . . . . . . . . . . . Robot Schematics Acquired . | . . . . . . . . . . . . . . . . . . . . . . . . . . . . . . . . . . . . . Robots Built . | . . . . . . . . . . . . . . . . . . . . . . . . . . . . . . . . . . . . . Matter . | . . . . . . . . . . . . . . . . . . . . . . . . . . . . . . . . . . . . . Time . | . . . . . . . . . . . . . . . . . . . . . . . . . . . . . . . . . . . . . Total Robot Build Rating . | . . . . . . . . . . . . . . . . . . . . . . . . . . . . . . . . . . . . . Part Schematics Acquired 4 | . 2 . . . . . . . . . . . . . . . . . . . . . 1 . . . 1 . . . . . . . . . Parts Built . | . . . . . . . . . . . . . . . . . . . . . . . . . . . . . . . . . . . . . Matter . | . . . . . . . . . . . . . . . . . . . . . . . . . . . . . . . . . . . . . Time . | . . . . . . . . . . . . . . . . . . . . . . . . . . . . . . . . . . . . . Total Part Build Rating . | . . . . . . . . . . . . . . . . . . . . . . . . . . . . . . . . . . . . . Parts Repaired 7 | . 1 . 1 2 . . . . . . . . . . . . . 1 . . . . . . . . 1 1 . . . . . . . . Time 251 | . 26 . 13 83 . . . . . . . . . . . . . 56 . . . . . . . . 37 36 . . . . . . . . Parts Recycled . | . . . . . . . . . . . . . . . . . . . . . . . . . . . . . . . . . . . . . Recycled Matter . | . . . . . . . . . . . . . . . . . . . . . . . . . . . . . . . . . . . . . Retrieved Matter . | . . . . . . . . . . . . . . . . . . . . . . . . . . . . . . . . . . . . . Retrieved Components 2 | . . . . . . . . . . . . . . . . . . . . . . . 2 . . . . . . . . . . . . . Parts Scanalyzed 2 | . . . . . . . . . . . . . . . . . . . . . . . 1 . . . 1 . . . . . . . . . Part Schematics Acquired 2 | . . . . . . . . . . . . . . . . . . . . . . . 1 . . . 1 . . . . . . . . . Parts Damaged . | . . . . . . . . . . . . . . . . . . . . . . . . . . . . . . . . . . . . . Bothacking | -11 -10 -10 -9 -9 -8 -8 -7 -7 -7 -7 -7 -7 -6 -6 -5 -5 -5 -5 -5 -5 -5 -5 -4 -4 -3 -3 -3 -3 -3 -2 -2 -2 -2 -1 -1 -1 ------------ Run | Scr Mat Min Mat Sto Mat Gar Fac Was Fac Gar Fac Gar Fac Gar Fac Was Fac Ext Cet Arc Hub Gar Fac Gar Res Gar Res Tes Gar Res Qua Sec Gar Acc Com Ac0 Used RIF Installer 9 | . . . . . . 1 . . . 1 . 1 . 1 . . . . . . . 1 . 1 . 1 . . 1 . . . 1 . . . Coupler Efficiency 2 | . . . . . . . . . . . . . . . . . . . . . . . . 1 . . . . 1 . . . . . . . Command Fork 1 | . . . . . . . . . . . . . . . . . . . . . . . . . . . . . . . . . 1 . . . Threat Obfuscator 1 | . . . . . . . . . . . . . . . . . . . . . . 1 . . . . . . . . . . . . . . Signal Jammer 1 | . . . . . . . . . . . . . . 1 . . . . . . . . . . . . . . . . . . . . . . Watcher Feeds 1 | . . . . . . . . . . 1 . . . . . . . . . . . . . . . . . . . . . . . . . . Alert ID Control 1 | . . . . . . . . . . . . 1 . . . . . . . . . . . . . . . . . . . . . . . . Structural Interface 1 | . . . . . . . . . . . . . . . . . . . . . . . . . . 1 . . . . . . . . . . Robots Hacked 130 | . . . . . . . . . . . 2 . 1 . 3 6 2 . . . 1 3 . 7 6 11 14 6 2 1 7 10 12 14 22 . Non-combat 42 | . . . . . . . . . . . 2 . 1 . 2 . 2 . . . 1 . . . 4 . 9 3 . . . 5 . 7 6 . Combat 88 | . . . . . . . . . . . . . . . 1 6 . . . . . 3 . 7 2 11 5 3 2 1 7 5 12 7 16 . Robot Hacks Applied 144 | . . . . . . . . . . . 5 . 1 . 3 7 2 . . . 1 3 . 7 6 11 16 7 2 1 7 12 13 17 23 . parse_system 4 | . . . . . . . . . . . . . . . 1 1 . . . . . . . . . 1 . . . . . 1 . . . . find_chute 1 | . . . . . . . . . . . . . . . 1 . . . . . . . . . . . . . . . . . . . . . ignore_repairs 1 | . . . . . . . . . . . . . . . . . . . . . . . . . . . . . . . . . . 1 . . drop_inventory 14 | . . . . . . . . . . . . . . . . . 2 . . . 1 . . . 1 . 6 1 . . . 2 . 1 . . ignore_parts 3 | . . . . . . . . . . . . . . . 1 . . . . . . . . . . . . . . . . . . 1 1 . purge_threat 15 | . . . . . . . . . . . 4 . . . . . . . . . . . . . 1 . 4 2 . . . 2 . 2 . . locate_traps 2 | . . . . . . . . . . . . . . . . . . . . . . . . . . . . . . . . . . 1 1 . block_reporting 9 | . . . . . . . . . . . . . . . . . . . . . . . . . . . 1 1 . . . 3 . 1 3 . map_route 5 | . . . . . . . . . . . . . . . . . . . . . . . . . 2 . . . . . . . . 2 1 . disable_scanner 4 | . . . . . . . . . . . . . . . . . . . . . . . . . . . . 2 . . 1 1 . . . . ignore_targets 6 | . . . . . . . . . . . . . . . . 6 . . . . . . . . . . . . . . . . . . . . amplify_resonance 1 | . . . . . . . . . . . . . . . . . . . . . . . . 1 . . . . . . . . . . . . reboot_system 5 | . . . . . . . . . . . . . . . . . . . . . . . . . . 2 . . . . 1 . . . 2 . overwrite_iff 45 | . . . . . . . . . . . . . . . . . . . . . . 2 . 3 2 6 3 1 2 . 4 3 11 7 1 . streamctrl_low 1 | . . . . . . . . . . . 1 . . . . . . . . . . . . . . . . . . . . . . . . . formatsys_low 3 | . . . . . . . . . . . . . 1 . . . . . . . . . . . . . . . . . . . . 1 1 . formatsys_high 25 | . . . . . . . . . . . . . . . . . . . . . . 1 . 3 . 2 2 . . 1 1 . 2 . 13 . Relay Couplers Released 77 | . . . . . . 4 . . . . . 6 . 8 . . . . . . 1 7 2 8 4 6 2 . 8 . 2 . 17 2 . . Ejected 4 | . . . . . . . . . . . . . . . . . . . . . . . . . 4 . . . . . . . . . . . Machine Destruction 71 | . . . . . . 4 . . . . . 6 . 8 . . . . . . 1 7 . 8 . 6 2 . 8 . 2 . 17 2 . . Programmers 2 | . . . . . . . . . . . . . . . . . . . . . . . 2 . . . . . . . . . . . . . Attached 41 | . . . . . . . . . . . 2 . 1 . . 1 . . . . 1 2 . 4 1 5 3 1 1 2 1 2 5 5 4 . Robots Rewired 19 | . . . . . . . . . . 6 . . . . 2 . . 11 . . . . . . . . . . . . . . . . . . Allies Hacked 7 | . . . . . . . . . . . . . . . . . 1 . . . . . . . . 1 . . . . . . . . 5 . Hacks Repelled . | . . . . . . . . . . . . . . . . . . . . . . . . . . . . . . . . . . . . . Allies | -11 -10 -10 -9 -9 -8 -8 -7 -7 -7 -7 -7 -7 -6 -6 -5 -5 -5 -5 -5 -5 -5 -5 -4 -4 -3 -3 -3 -3 -3 -2 -2 -2 -2 -1 -1 -1 -------- Run | Scr Mat Min Mat Sto Mat Gar Fac Was Fac Gar Fac Gar Fac Gar Fac Was Fac Ext Cet Arc Hub Gar Fac Gar Res Gar Res Tes Gar Res Qua Sec Gar Acc Com Ac0 Total Allies 175 | . . . . 10 . . . 20 1 6 19 . 2 . 2 19 . 20 . . . 3 1 6 2 8 5 1 2 1 5 3 12 10 17 . Largest Group 21 | . . . . 10 . . . 20 21 19 15 . 1 2 3 21 16 11 . . . 1 1 2 2 3 2 1 2 1 1 2 2 3 13 . Highest-Rated Group 783 | . . . . 88 . . . 506 538 476 595 . 23 54 99 783 608 435 . . . 29 84 98 105 175 128 56 110 58 69 60 122 118 595 . Highest-Rated Ally 222 | . . . . 16 . . . 35 35 35 74 . 23 32 65 65 65 156 . . . 29 84 49 58 64 64 56 56 58 69 30 64 58 222 . Total Orders 73 | . . . . . . . . . . . 3 . 2 9 2 1 1 2 . . . . . 4 . 6 4 . . . . . 2 12 25 . STAY 40 | . . . . . . . . . . . 1 . . 6 1 . . 1 . . . . . 4 . 3 2 . . . . . 1 6 15 . FOLLOW 24 | . . . . . . . . . . . . . 1 1 1 . . 1 . . . . . . . 3 2 . . . . . 1 6 8 . AID 9 | . . . . . . . . . . . 2 . 1 2 . 1 1 . . . . . . . . . . . . . . . . . 2 . Ally Attacks 948 | . . . . 78 . . . . . 153 17 . . 13 . 83 89 162 . . . 26 9 18 5 45 32 3 4 1 11 15 37 32 115 . Total Damage 28010 | . . . . 653 . . . . . 3360 2104 . . 499 . 2672 3021 4176 . . . 353 386 393 209 1475 1226 108 197 25 478 268 1334 689 4384 . Kills 156 | . . . . 14 . . . . . 26 16 . . 1 . 7 22 34 . . . 2 2 2 1 2 7 . . . . 3 5 3 9 . Allies Corrupted 5 | . . . . . . . . . . . . . . . . . 1 . . . . . . . . . 1 . . . . . . . 3 . Allies Melted 1 | . . . . . . . . . . . . . . . . . . . . . . . . . . . . . . . . . . . 1 . Intel | -11 -10 -10 -9 -9 -8 -8 -7 -7 -7 -7 -7 -7 -6 -6 -5 -5 -5 -5 -5 -5 -5 -5 -4 -4 -3 -3 -3 -3 -3 -2 -2 -2 -2 -1 -1 -1 ------- Run | Scr Mat Min Mat Sto Mat Gar Fac Was Fac Gar Fac Gar Fac Gar Fac Was Fac Ext Cet Arc Hub Gar Fac Gar Res Gar Res Tes Gar Res Qua Sec Gar Acc Com Ac0 Robot Analysis Total 4 | . 3 . 1 . . . . . . . . . . . . . . . . . . . . . . . . . . . . . . . . . Derelict Logs Recovered 1 | . . 1 . . . . . . . . . . . . . . . . . . . . . . . . . . . . . . . . . . Drone Launches . | . . . . . . . . . . . . . . . . . . . . . . . . . . . . . . . . . . . . . Drone Recoveries . | . . . . . . . . . . . . . . . . . . . . . . . . . . . . . . . . . . . . . Exploration | -11 -10 -10 -9 -9 -8 -8 -7 -7 -7 -7 -7 -7 -6 -6 -5 -5 -5 -5 -5 -5 -5 -5 -4 -4 -3 -3 -3 -3 -3 -2 -2 -2 -2 -1 -1 -1 ------------- Run | Scr Mat Min Mat Sto Mat Gar Fac Was Fac Gar Fac Gar Fac Gar Fac Was Fac Ext Cet Arc Hub Gar Fac Gar Res Gar Res Tes Gar Res Qua Sec Gar Acc Com Ac0 Turns Passed 57220 | . 1638 1200 2454 1774 281 660 71 558 32 1412 1528 1426 219 1620 257 818 920 1294 428 1364 1484 1349 1350 2405 840 1828 2742 786 1206 884 1228 2463 2548 1935 8987 5231 Spaces Moved 26404 | 1 919 717 1260 831 87 199 42 321 10 740 647 528 117 687 105 298 416 681 171 166 639 665 727 840 430 821 1102 264 505 394 566 1139 1243 871 5148 2107 Core 108 | . . . . . . . . . . . . . . . . . . . . 48 . . . . . . . . . . . . . . 60 . Treads 25745 | . 578 689 1260 831 87 199 42 321 10 740 647 528 117 687 105 298 416 681 171 118 639 665 727 840 430 821 1102 264 505 394 566 1134 1243 871 4959 2060 Legs 342 | 1 341 . . . . . . . . . . . . . . . . . . . . . . . . . . . . . . . . . . . Wheels 28 | . . 28 . . . . . . . . . . . . . . . . . . . . . . . . . . . . . . . . . . Hover 47 | . . . . . . . . . . . . . . . . . . . . . . . . . . . . . . . . . . . . 47 Flight 129 | . . . . . . . . . . . . . . . . . . . . . . . . . . . . . . . . . . . 129 . Fastest Speed 28 | 120 120 105 152 161 261 261 163 160 160 160 160 160 160 160 160 152 152 152 152 160 160 160 152 152 155 155 145 161 166 150 145 146 150 150 28 48 Average Speed 164 | 120 145 153 161 170 261 261 163 161 160 160 160 160 160 160 160 153 152 152 153 692 160 160 159 243 155 160 156 164 168 161 153 149 150 150 154 170 Slowest Speed 3950 | 120 160 160 170 270 261 261 163 166 160 160 160 160 160 160 160 260 152 152 260 2000 160 160 160 400 155 260 161 166 170 170 253 150 150 150 3950 276 Overloaded Moves . | . . . . . . . . . . . . . . . . . . . . . . . . . . . . . . . . . . . . . Propulsion Burnouts . | . . . . . . . . . . . . . . . . . . . . . . . . . . . . . . . . . . . . . Robots Hopped . | . . . . . . . . . . . . . . . . . . . . . . . . . . . . . . . . . . . . . Cave-ins Triggered . | . . . . . . . . . . . . . . . . . . . . . . . . . . . . . . . . . . . . . Teleports 2 | . . . . . . . . . . . . . . . . . . . . . . . . . . . . . . . . . . . 1 1 Spacefolds 2 | . . . . . . . . . . . . . . . . . . . . . . . . . . . . . . . . 2 . . . . Exploration Rate (%) 52 | 2 96 98 85 92 11 39 2 95 1 68 26 62 4 35 4 88 15 80 52 76 69 71 14 73 16 63 52 35 53 21 62 82 99 36 94 85 Regions Visited 36 Branch Regions 11 Pre-discovered Areas 6 | . 2 1 1 2 . . . . . . . . . . . . . . . . . . . . . . . . . . . . . . . . Known Exits Taken 12 | . . . . 1 1 . . . 1 . 1 . 1 . . . 1 . . . 1 . 1 . 1 . 1 1 . . . 1 . . . . Unknown Exits Taken 11 | 1 1 1 1 . . . . . . . . . . . . . . 1 1 1 . . . . . . . . . 1 1 . . 1 1 . Scrap Searched 1 | . . 1 . . . . . . . . . . . . . . . . . . . . . . . . . . . . . . . . . . Spaces Dug 168 | . . . . 12 12 . . . . . 2 . . . 4 . 7 . . 1 11 . 1 1 12 . 21 . . 6 5 22 1 35 7 8 Terrain Destroyed 1093 | . . 2 8 19 12 3 . . . . 50 9 1 1 5 4 28 16 46 4 46 . 13 1 22 8 101 44 31 39 27 58 50 89 148 208 Melee 26 | . . . . . . . . . . . . . . . . . . . . . . . . . . . . . . . . 4 1 14 7 . Projectile 870 | . . 2 8 7 . . . . . . 12 . 1 1 5 4 28 16 5 4 46 . 13 1 22 8 101 33 31 39 27 54 49 75 70 208 AOE 197 | . . . . 12 12 3 . . . . 38 9 . . . . . . 41 . . . . . . . . 11 . . . . . . 71 . Terrain Rammed . | . . . . . . . . . . . . . . . . . . . . . . . . . . . . . . . . . . . . . Walls Destroyed . | . . . . . . . . . . . . . . . . . . . . . . . . . . . . . . . . . . . . . Machines Disabled . | . . . . . . . . . . . . . . . . . . . . . . . . . . . . . . . . . . . . . Actions | -11 -10 -10 -9 -9 -8 -8 -7 -7 -7 -7 -7 -7 -6 -6 -5 -5 -5 -5 -5 -5 -5 -5 -4 -4 -3 -3 -3 -3 -3 -2 -2 -2 -2 -1 -1 -1 --------- Run | Scr Mat Min Mat Sto Mat Gar Fac Was Fac Gar Fac Gar Fac Gar Fac Was Fac Ext Cet Arc Hub Gar Fac Gar Res Gar Res Tes Gar Res Qua Sec Gar Acc Com Ac0 Total 36136 | . 1120 777 1501 1075 118 271 46 356 22 945 1023 1049 139 1140 167 620 635 873 294 346 950 841 854 1151 537 1238 1748 489 722 543 831 1631 1748 1305 5940 3091 Wait 5534 | . 92 5 83 149 6 31 . 6 9 110 273 477 8 405 27 258 137 92 55 136 168 82 44 195 42 291 274 89 102 58 99 262 297 278 405 489 Move 26373 | . 918 716 1259 830 87 198 42 320 9 739 647 527 117 686 105 297 415 680 170 165 639 664 727 839 429 820 1101 263 504 394 565 1136 1242 870 5147 2106 Hop . | . . . . . . . . . . . . . . . . . . . . . . . . . . . . . . . . . . . . . Pick Up 351 | . 15 10 15 5 5 3 2 4 . 4 6 4 1 6 . 3 5 4 7 1 9 9 9 15 7 12 28 16 11 7 14 14 23 8 47 22 Fast Attach 245 | . 4 1 8 4 . . . 3 . . 4 . . 1 4 8 1 2 4 1 9 2 16 6 . 12 18 5 5 7 23 13 6 3 38 37 Attach 155 | . . . 5 . 2 1 2 . . . 2 2 1 . 2 1 . 2 7 1 6 7 4 5 3 2 14 3 9 3 7 3 12 6 17 26 Detach 101 | . 2 1 . . . . . . . . . . . . 1 2 1 1 4 . 9 5 2 2 . 1 7 2 3 4 8 . 8 2 16 20 Swap 441 | . 13 8 16 13 3 1 . 4 . 3 14 7 5 1 5 2 10 10 7 3 11 9 6 16 12 21 59 19 7 8 20 28 30 11 31 28 Drop 543 | . 17 13 22 10 4 2 . 14 . 6 12 2 . 6 2 10 7 6 5 2 14 7 16 19 4 22 45 19 13 14 40 26 22 6 78 58 Fire 2138 | . 55 20 86 50 11 33 . 5 4 17 63 30 7 35 20 27 58 68 35 36 80 56 27 39 40 54 196 72 68 48 52 124 103 100 128 291 Melee 100 | . . . . . . . . . . . . . . . . 6 . . . . . . . . . . . . . . 3 25 5 21 26 14 Ram . | . . . . . . . . . . . . . . . . . . . . . . . . . . . . . . . . . . . . . Kick 1 | . 1 . . . . . . . . . . . . . . . . . . . . . . . . . . . . . . . . . . . Crush 58 | . 3 2 7 13 . . . . . . 2 . . . 1 6 1 7 . 1 5 . 3 . . . 6 1 . . . . . . . . Escape Stasis 19 | . . . . . . 2 . . . 2 . . . . . . . . . . . . . 14 . 1 . . . . . . . . . . Rewire 76 | . . . . 1 . . . . . 64 . . . . . . . 1 . . . . . 1 . 2 . . . . . . . . 7 . Trap 1 | . . 1 . . . . . . . . . . . . . . . . . . . . . . . . . . . . . . . . . . Miscellaneous . | . . . . . . . . . . . . . . . . . . . . . . . . . . . . . . . . . . . . . Route ------- -11/Scrapyard -10/Materials (discovered 5 exits: *Mat x3 / *Min x2) -10/Mines (discovered 3 exits: *Mat x2 / [*Exi]) -9/Materials (discovered 5 exits: *Mat x3 / [*Min] / *Sto) -9/Storage -8/Materials -8/Garrison -7/Factory -7/Waste -7/Factory -7/Garrison (discovered 3 exits: *Fac x3) -7/Factory (discovered 2 exits: *Fac / Gar) -7/Garrison (discovered 3 exits: *Fac x3) -6/Factory -6/Garrison -5/Factory (discovered 4 exits: Upp x2 / Ext x2) -5/Waste -5/Factory (discovered 5 exits: *Fac / *Upp x2 / *Ext x2) -5/Extension (discovered 2 exits: *Fac / [*Cet]) -5/Cetus -5/Archives (discovered 2 exits: *Fac / *Hub) -5/Hub_04(d) (discovered 4 exits: *Fac x3 / Gar) -5/Garrison (discovered 2 exits: *Fac x2) -4/Factory (discovered 3 exits: *Res / [*Upp] / Gar) -4/Garrison (discovered 2 exits: *Res x2) -3/Research -3/Garrison (discovered 2 exits: *Res x2) -3/Research (discovered 3 exits: *Res / *Tes x2) -3/Testing -3/Garrison -2/Research (discovered 4 exits: *Acc x3 / *Qua) -2/Quarantine (discovered 2 exits: *Acc / *Sec) -2/Section 7 (discovered 2 exits: *Acc / Gar) -2/Garrison (discovered 3 exits: *Acc x3) -1/Access -1/Command (discovered 3 exits: [*Sur x2] / *Ac0) -1/Access_0 Near Former Tau Ceti IV History --------- Turn | Location | Event 1 | -11/Scrapyard | Discovered new exit (range 0) 1 | -11/Scrapyard | Entered Materials 305 | -10/Materials | Build established: Mutant 531 | -10/Materials | Discovered new exit (range 6) 649 | -10/Materials | Discovered new exit (range 8) 659 | -10/Materials | Central database locked down 689 | -10/Materials | Discovered new exit (range 13) 952 | -10/Materials | Repaired Beam Cannon 1021 | -10/Materials | Discovered new exit (range 16) 1402 | -10/Materials | Discovered new exit (range 13) 1639 | -10/Materials | Entered Mines 1691 | -10/Mines | Met a Derelict bent on vengeance 1720 | -10/Mines | A weapon hastily lodged in a ceiling crevice suddenly fell to the ground 1800 | -10/Mines | Deemed a non-threat by the Exiles lab entrance 1800 | -10/Mines | Discovered new exit (range 5) 1873 | -10/Mines | Core integrity fell below 50% 1897 | -10/Mines | Found a hidden stash of uninstalled traps 2269 | -10/Mines | Met a Derelict shopkeep closing up shop 2380 | -10/Mines | Discovered new exit (range 9) 2395 | -10/Mines | Received a Rocket Launcher from a helpful Derelict 2481 | -10/Mines | Discovered new exit (range 6) 2589 | -10/Mines | Learned location of Mines (-9) 2839 | -10/Mines | Entered Materials 2839 | -9/Materials | Evolved 2 slots: Propulsion x1, Weapon x1 2885 | -9/Materials | Central database locked down 3075 | -9/Materials | Destroyed 7 combat bots 3137 | -9/Materials | Build established: Gunner 3159 | -9/Materials | Repaired Lgt. Treads 3731 | -9/Materials | Discovered new exit (range 3) 3780 | -9/Materials | Identified exit to Materials 3835 | -9/Materials | Discovered new exit (range 9) 4033 | -9/Materials | Discovered exit to Materials (range 10) 4039 | -9/Materials | First assault squad dispatched 4227 | -9/Materials | Discovered exit to Materials (range 15) 4480 | -9/Materials | Discovered new exit (range 14) 5293 | -9/Materials | Entered Storage 5465 | -9/Storage | Assisted by bots powering up and referring to "LRC-V3" 5885 | -9/Storage | Repaired Hvy. Ion Engine 5959 | -9/Storage | Discovered exit to Materials (range 16) 6976 | -9/Storage | Repaired Imp. Light Cannon 7067 | -9/Storage | Entered Materials 7067 | -8/Materials | Evolved 2 slots: Utility x2 7257 | -8/Materials | Garrison activated, responded to threat 7348 | -8/Materials | Identified exit to Garrison 7348 | -8/Materials | Entered Garrison 7355 | -8/Garrison | Build established: Tank 7524 | -8/Garrison | Triggered checkpoint 7659 | -8/Garrison | Discovered new exit (range 10) 7695 | -8/Garrison | Installed Relay Interface Framework 7754 | -8/Garrison | Triggered checkpoint 7868 | -8/Garrison | Garrison Relay disabled 8008 | -8/Garrison | Entered Factory 8008 | -7/Factory | Evolved 2 slots: Propulsion x1, Utility x1 8079 | -7/Factory | Sucked down chute 8079 | -7/Factory | Entered Waste 8080 | -7/Waste | Joined by Warlord forces that had cleared the area 8198 | -7/Waste | Build established: Mutant 8288 | -7/Waste | Discovered new exit (range 16) 8637 | -7/Waste | Entered Factory 8637 | -7/Factory | Accompanied by 20 allies 8659 | -7/Factory | Identified exit to Garrison 8669 | -7/Factory | Entered Garrison 8669 | -7/Garrison | Accompanied by 19 allies 8793 | -7/Garrison | Triggered checkpoint 8810 | -7/Garrison | Triggered checkpoint 8810 | -7/Garrison | Triggered checkpoint 8950 | -7/Garrison | Discovered new exit (range 10) 9145 | -7/Garrison | Discovered new exit (range 10) 9415 | -7/Garrison | Build established: Tank 9608 | -7/Garrison | Triggered checkpoint 9636 | -7/Garrison | Triggered checkpoint 9644 | -7/Garrison | Triggered checkpoint 9654 | -7/Garrison | Discovered new exit (range 12) 9679 | -7/Garrison | Expanded RIF knowledge: Watcher Feeds 9770 | -7/Garrison | Triggered checkpoint 9850 | -7/Garrison | Triggered checkpoint 9930 | -7/Garrison | Spotted B-75 Beast 9937 | -7/Garrison | Destroyed B-75 Beast 10081 | -7/Garrison | Entered Factory 10081 | -7/Factory | Accompanied by 4 allies 10246 | -7/Factory | Build established: Mutant 10761 | -7/Factory | Discovered new exit (range 15) 10785 | -7/Factory | Build established: Tank 10881 | -7/Factory | First assault squad dispatched 11003 | -7/Factory | Cargo convoy interrupted 11609 | -7/Factory | Identified exit to Garrison 11609 | -7/Factory | Entered Garrison 12108 | -7/Garrison | Triggered checkpoint 12211 | -7/Garrison | Discovered new exit (range 14) 12461 | -7/Garrison | Triggered checkpoint 12553 | -7/Garrison | Discovered new exit (range 10) 12585 | -7/Garrison | Expanded RIF knowledge: Alert ID Control 12652 | -7/Garrison | Triggered checkpoint 12702 | -7/Garrison | Garrison Relay disabled 12770 | -7/Garrison | Triggered checkpoint 12799 | -7/Garrison | Destroyed 8 combat bots 12832 | -7/Garrison | Discovered new exit (range 9) 12882 | -7/Garrison | Triggered checkpoint 12962 | -7/Garrison | Garrison Relay disabled 13035 | -7/Garrison | Entered Factory 13035 | -6/Factory | Evolved 2 slots: Power x1, Utility x1 13254 | -6/Factory | Identified exit to Garrison 13254 | -6/Factory | Entered Garrison 13254 | -6/Garrison | Accompanied by 2 allies 13530 | -6/Garrison | Build established: Bothacker-Mutant 13718 | -6/Garrison | Triggered checkpoint 13752 | -6/Garrison | Garrison Relay disabled 13915 | -6/Garrison | Triggered checkpoint 13931 | -6/Garrison | Spotted B-75 Beast 14140 | -6/Garrison | Destroyed B-75 Beast 14221 | -6/Garrison | Discovered new exit (range 8) 14224 | -6/Garrison | Build established: Bothacker-Tank 14243 | -6/Garrison | Expanded RIF knowledge: Signal Jamming 14288 | -6/Garrison | Triggered checkpoint 14335 | -6/Garrison | Garrison Relay disabled 14874 | -6/Garrison | Entered Factory 14874 | -5/Factory | Accompanied by 1 ally 14874 | -5/Factory | Evolved 2 slots: Utility x2 14975 | -5/Factory | Identified exit to Upper Caves 14975 | -5/Factory | Identified exit to Extension 15049 | -5/Factory | Spotted B-75 Beast 15088 | -5/Factory | Destroyed B-75 Beast 15131 | -5/Factory | Sucked down chute 15131 | -5/Factory | Entered Waste 15209 | -5/Waste | Spotted C-40 Crusher 15212 | -5/Waste | Spotted C-40 Crusher 15220 | -5/Waste | 3 allies followed down the chute 15223 | -5/Waste | Spotted C-40 Crusher 15223 | -5/Waste | Spotted C-40 Crusher 15280 | -5/Waste | Found Imp. Powered Armor 15305 | -5/Waste | Spotted C-40 Crusher 15314 | -5/Waste | Spotted C-40 Crusher 15372 | -5/Waste | Destroyed C-40 Crusher 15442 | -5/Waste | Destroyed C-40 Crusher 15492 | -5/Waste | Warlord forces began an assault 15504 | -5/Waste | Allies destroyed C-40 Crusher 15513 | -5/Waste | Allies destroyed C-40 Crusher 15517 | -5/Waste | Allies destroyed C-40 Crusher 15528 | -5/Waste | Allies destroyed C-40 Crusher 15643 | -5/Waste | Discovered new exit (range 13) 15722 | -5/Waste | Found Enh. Force Lance 15949 | -5/Waste | Entered Factory 15949 | -5/Factory | Accompanied by 16 allies 16077 | -5/Factory | Spotted B-75 Beast 16101 | -5/Factory | Allies destroyed B-75 Beast 16150 | -5/Factory | Discovered exit to Upper Caves (range 8) 16230 | -5/Factory | P-70 Sage assimilated allied 4U-HS8(g) 16249 | -5/Factory | First assault squad dispatched 16359 | -5/Factory | Discovered new exit (range 25) 16869 | -5/Factory | Entered Extension 16951 | -5/Extension | Rescued a captive Derelict 17018 | -5/Extension | Rescued a captive Derelict 17018 | -5/Extension | Rescued a captive Derelict 17130 | -5/Extension | Repaired Imp. Powered Armor 17188 | -5/Extension | Rescued a captive Derelict 17188 | -5/Extension | Rescued a captive Derelict 17241 | -5/Extension | Rescued A7 17309 | -5/Extension | Rescued a captive Derelict 17309 | -5/Extension | Rescued a captive Derelict 17584 | -5/Extension | Spotted B-75 Beast 17591 | -5/Extension | Destroyed B-75 Beast 17608 | -5/Extension | Spotted B-75 Beast 17613 | -5/Extension | Allies destroyed B-75 Beast 17721 | -5/Extension | Rescued a captive Derelict 17755 | -5/Extension | Energy Cycler disabled 17755 | -5/Extension | Rescued a captive Derelict 17755 | -5/Extension | Rescued a captive Derelict 18026 | -5/Extension | Disrupted transfer network 18039 | -5/Extension | P-70 Sage assimilated allied B8-E1B(h) 18041 | -5/Extension | Discovered new exit (range 10) 18041 | -5/Extension | Discovered new exit (range 7) 18069 | -5/Extension | First assault squad dispatched 18103 | -5/Extension | Extracted ID and sensor layout for unrecognized location from A7's data core 18163 | -5/Extension | Entered Cetus 18183 | -5/Cetus | Spotted Cetus Guard 18183 | -5/Cetus | Spotted Cetus Guard 18193 | -5/Cetus | Spotted Cetus Guard 18195 | -5/Cetus | Destroyed Cetus Guard 18196 | -5/Cetus | Spotted Cetus Guard 18206 | -5/Cetus | Destroyed Cetus Guard 18212 | -5/Cetus | Destroyed Cetus Guard 18223 | -5/Cetus | Destroyed Cetus Guard 18252 | -5/Cetus | Lost 5 parts (2p1n1u1w) 18294 | -5/Cetus | Cetus Manufacturing Module disabled 18319 | -5/Cetus | Discovered new exit (range 15) 18444 | -5/Cetus | Spotted Cetus Guard 18474 | -5/Cetus | Spotted Cetus Guard 18474 | -5/Cetus | Spotted Cetus Guard 18474 | -5/Cetus | Spotted Cetus Guard 18495 | -5/Cetus | Destroyed Cetus Guard 18509 | -5/Cetus | Destroyed Cetus Guard 18516 | -5/Cetus | Destroyed Cetus Guard 18526 | -5/Cetus | Destroyed Cetus Guard 18591 | -5/Cetus | Entered Archives 18781 | -5/Archives | Build established: Scavenger-Mutant 18859 | -5/Archives | Discovered new exit (range 15) 18876 | -5/Archives | Discovered new exit (range 15) 19955 | -5/Archives | Entered Hub_04(d) 20043 | -5/Hub_04(d) | Discovered new exit (range 15) 20587 | -5/Hub_04(d) | Discovered new exit (range 8) 20662 | -5/Hub_04(d) | Identified exit to Factory 20706 | -5/Hub_04(d) | Discovered exit to Factory (range 14) 20810 | -5/Hub_04(d) | Build established: Bothacker-Tank 21107 | -5/Hub_04(d) | Network Hub disabled 21142 | -5/Hub_04(d) | Spotted Lightning 21147 | -5/Hub_04(d) | Spotted Lightning 21150 | -5/Hub_04(d) | Spotted Lightning 21151 | -5/Hub_04(d) | System corruption reached 10% 21168 | -5/Hub_04(d) | Destroyed Lightning 21184 | -5/Hub_04(d) | Destroyed Lightning 21207 | -5/Hub_04(d) | Destroyed Lightning 21239 | -5/Hub_04(d) | Found Prototype Energy Cannon 21239 | -5/Hub_04(d) | Identified EMDS 21251 | -5/Hub_04(d) | Found Prototype Device 21251 | -5/Hub_04(d) | Identified Exp. Phase Shifter 21267 | -5/Hub_04(d) | Found Prototype Device 21267 | -5/Hub_04(d) | Identified EM Dispersion Field 21332 | -5/Hub_04(d) | Garrison activated, responded to threat 21439 | -5/Hub_04(d) | Identified exit to Garrison 21439 | -5/Hub_04(d) | Entered Garrison 21553 | -5/Garrison | Destroyed 7 combat bots 21561 | -5/Garrison | Triggered checkpoint 21618 | -5/Garrison | Garrison Relay disabled 21753 | -5/Garrison | Triggered checkpoint 21863 | -5/Garrison | Spotted B-75 Beast 21905 | -5/Garrison | Destroyed B-75 Beast 21985 | -5/Garrison | Triggered checkpoint 22068 | -5/Garrison | Discovered exit to Factory (range 10) 22189 | -5/Garrison | Discovered exit to Factory (range 14) 22221 | -5/Garrison | Expanded RIF knowledge: Threat Obfuscation 22344 | -5/Garrison | Triggered checkpoint 22396 | -5/Garrison | Garrison Relay disabled 22720 | -5/Garrison | Build established: Botlord-Tank 22788 | -5/Garrison | Entered Factory 22788 | -4/Factory | Evolved 2 slots: Utility x2 23134 | -4/Factory | Discovered new exit (range 7) 23264 | -4/Factory | Discovered new exit (range 8) 23697 | -4/Factory | Cargo convoy interrupted 24105 | -4/Factory | Found Prototype Protection 24105 | -4/Factory | Identified Centrium Heavy Armor Plating 24109 | -4/Factory | Found Prototype Processor 24109 | -4/Factory | Identified Exp. Signal Interpreter 24126 | -4/Factory | Found Exp. Signal Interpreter 24138 | -4/Factory | Identified exit to Garrison 24138 | -4/Factory | Entered Garrison 24273 | -4/Garrison | Triggered checkpoint 24426 | -4/Garrison | Garrison Relay disabled 24599 | -4/Garrison | Triggered checkpoint 24655 | -4/Garrison | Spotted B-86 Titan 24655 | -4/Garrison | Triggered checkpoint 24961 | -4/Garrison | Destroyed B-86 Titan 25294 | -4/Garrison | Build established: Botlord-Mutant 25312 | -4/Garrison | Discovered new exit (range 14) 25641 | -4/Garrison | Discovered new exit (range 14) 25692 | -4/Garrison | Expanded RIF knowledge: Coupler Efficiency 25778 | -4/Garrison | Triggered checkpoint 25813 | -4/Garrison | Garrison Relay disabled 26036 | -4/Garrison | Triggered checkpoint 26092 | -4/Garrison | Triggered checkpoint 26415 | -4/Garrison | Build established: Botlord-Tank 26543 | -4/Garrison | Entered Research 26543 | -3/Research | Evolved 2 slots: Propulsion x2 27359 | -3/Research | Identified exit to Garrison 27383 | -3/Research | Entered Garrison 27434 | -3/Garrison | Triggered checkpoint 27461 | -3/Garrison | Garrison Relay disabled 27742 | -3/Garrison | Spotted B-86 Titan 27765 | -3/Garrison | Triggered checkpoint 27833 | -3/Garrison | Triggered checkpoint 27888 | -3/Garrison | Destroyed B-86 Titan 27909 | -3/Garrison | Found Hvy. Reflective Plating 28000 | -3/Garrison | Discovered new exit (range 12) 28246 | -3/Garrison | Triggered checkpoint 28295 | -3/Garrison | Garrison Relay disabled 28416 | -3/Garrison | Discovered new exit (range 15) 28449 | -3/Garrison | Expanded RIF knowledge: Structural Interface 29211 | -3/Garrison | Entered Research 29211 | -3/Research | Accompanied by 2 allies 29590 | -3/Research | Repaired Biometal Heavy Treads 29793 | -3/Research | Found Prototype Device 29817 | -3/Research | Identified Exp. Focal Shield 29852 | -3/Research | System corruption reached 10% 29874 | -3/Research | Garrison activated, responded to threat 30696 | -3/Research | Found Antimissile System 30907 | -3/Research | Identified exit to Testing 30974 | -3/Research | Spotted B-86 Titan 31020 | -3/Research | Destroyed B-86 Titan 31491 | -3/Research | Destroyed 11 combat bots 31910 | -3/Research | Discovered new exit (range 29) 31953 | -3/Research | Entered Testing 32134 | -3/Testing | Repaired Centrium Heavy Armor Plating 32222 | -3/Testing | Garrison activated, responded to threat 32485 | -3/Testing | Found EM Dispersion Field 32512 | -3/Testing | Spotted PG-CX3AQ53SRH 32530 | -3/Testing | Destroyed PG-CX3AQ53SRH 32671 | -3/Testing | Garrison activated, responded to threat 32738 | -3/Testing | Identified exit to Garrison 32739 | -3/Testing | Entered Garrison 32749 | -3/Garrison | Expanded RIF knowledge: Coupler Efficiency 32798 | -3/Garrison | Triggered checkpoint 32861 | -3/Garrison | Garrison Relay disabled 33019 | -3/Garrison | Triggered checkpoint 33104 | -3/Garrison | Spotted B-86 Titan 33178 | -3/Garrison | Destroyed B-86 Titan 33183 | -3/Garrison | Triggered checkpoint 33214 | -3/Garrison | Triggered checkpoint 33262 | -3/Garrison | Destroyed 10 combat bots 33353 | -3/Garrison | Build established: Scavenger-Tank 33453 | -3/Garrison | Garrison Relay disabled 33527 | -3/Garrison | Discovered new exit (range 15) 33945 | -3/Garrison | System corruption reached 30% 33945 | -3/Garrison | Entered Research 33945 | -2/Research | Evolved 2 slots: Power x1, Weapon x1 33966 | -2/Research | Build established: Botlord-Tank 34195 | -2/Research | First assault squad dispatched 34396 | -2/Research | Discovered new exit (range 30) 34440 | -2/Research | Garrison activated, responded to threat 34488 | -2/Research | Destroyed 7 combat bots 34622 | -2/Research | Discovered new exit (range 10) 34773 | -2/Research | Identified exit to Access 34829 | -2/Research | Entered Quarantine 34848 | -2/Quarantine | Found Alien Artifact 34848 | -2/Quarantine | Identified Phase Armor 34972 | -2/Quarantine | Found Alien Energy Cannon 35141 | -2/Quarantine | Found Alien Impact Weapon 35474 | -2/Quarantine | Found Alien Slashing Weapon 35558 | -2/Quarantine | Discovered exit to Access (range 16) 35772 | -2/Quarantine | Found Alien Artifact 35850 | -2/Quarantine | Identified Sigix Broadsword 35853 | -2/Quarantine | Identified Core Stripper 35856 | -2/Quarantine | Spotted Fortress 35864 | -2/Quarantine | Destroyed Fortress 35877 | -2/Quarantine | Identified Core Cannon 35892 | -2/Quarantine | Found Prototype Device 35892 | -2/Quarantine | Identified Exp. Force Field 35895 | -2/Quarantine | Found Prototype Device 35895 | -2/Quarantine | Identified Thermal Barrier 35899 | -2/Quarantine | Found Prototype Reactor 35899 | -2/Quarantine | Identified Vortex Chain Reactor 35904 | -2/Quarantine | Found EM Dispersion Field 35917 | -2/Quarantine | Found Centrium Heavy Armor Plating 36043 | -2/Quarantine | Discovered new exit (range 6) 36057 | -2/Quarantine | Entered Section 7 36152 | -2/Section 7 | Build established: Botlord-Mutant 36167 | -2/Section 7 | Spotted S7 Guard 36211 | -2/Section 7 | Destroyed S7 Guard 36225 | -2/Section 7 | Found Prototype Protection 36225 | -2/Section 7 | Identified Hvy. Regenerative Plating 36238 | -2/Section 7 | Found Alien Artifact 36238 | -2/Section 7 | Identified Integrated Singularity Reactor 36238 | -2/Section 7 | Installed Integrated Singularity Reactor, increased core energy generation (+20) 36409 | -2/Section 7 | Garrison activated, responded to threat 36513 | -2/Section 7 | Identified Core Reset Matrix 36642 | -2/Section 7 | Found Alien Artifact 36642 | -2/Section 7 | Identified Spacefold Activator 36702 | -2/Section 7 | Found Alien Artifact 36702 | -2/Section 7 | Identified Integrated Reactor 36702 | -2/Section 7 | Installed Integrated Reactor, increased core energy generation (+10) 36756 | -2/Section 7 | Discovered exit to Access (range 3) 37677 | -2/Section 7 | Spotted Executioner 37678 | -2/Section 7 | Spotted Executioner 37694 | -2/Section 7 | Destroyed Executioner 37709 | -2/Section 7 | Destroyed Executioner 37722 | -2/Section 7 | Found Adv. Kinecellerator 37776 | -2/Section 7 | Found Alien Artifact 37861 | -2/Section 7 | Spotted B-99 Colossus 37952 | -2/Section 7 | Found Alien Artifact 38011 | -2/Section 7 | Found Alien Artifact 38011 | -2/Section 7 | Identified LRC Insulator 38011 | -2/Section 7 | Installed LRC Insulator, gained EM resistance (25) 38349 | -2/Section 7 | Identified Transdimensional Reconstructor 38349 | -2/Section 7 | Identified Integrity Redistributor 38492 | -2/Section 7 | Found Integrity Redistributor 38520 | -2/Section 7 | Identified exit to Garrison 38520 | -2/Section 7 | Entered Garrison 38673 | -2/Garrison | Garrison Relay disabled 38764 | -2/Garrison | Triggered checkpoint 38945 | -2/Garrison | Spotted B-90 Cyclops 38945 | -2/Garrison | Triggered checkpoint 39196 | -2/Garrison | Destroyed B-90 Cyclops 39392 | -2/Garrison | Triggered checkpoint 39398 | -2/Garrison | Discovered exit to Access (range 14) 39609 | -2/Garrison | Discovered exit to Access (range 7) 39638 | -2/Garrison | Triggered checkpoint 39879 | -2/Garrison | Triggered checkpoint 39933 | -2/Garrison | Triggered checkpoint 40018 | -2/Garrison | Triggered checkpoint 40085 | -2/Garrison | Garrison Relay disabled 40116 | -2/Garrison | Discovered exit to Access (range 14) 40146 | -2/Garrison | Expanded RIF knowledge: Command Fork 40339 | -2/Garrison | Garrison Relay disabled 40510 | -2/Garrison | Triggered checkpoint 40544 | -2/Garrison | Garrison Relay disabled 40992 | -2/Garrison | Used Integrity Redistributor, redistributed integrity from core (-219) 40993 | -2/Garrison | Core integrity fell below 50% 41068 | -2/Garrison | Entered Access 41068 | -1/Access | Accompanied by 1 ally 41068 | -1/Access | Evolved 2 slots: Weapon x2 42266 | -1/Access | Spotted B-99 Colossus 42288 | -1/Access | Destroyed B-99 Colossus 42774 | -1/Access | Discovered new exit (range 8) 43003 | -1/Access | Entered Command 43003 | -1/Command | Accompanied by 1 ally 44277 | -1/Command | P-80 Master assimilated allied Serf 10a 44370 | -1/Command | Spotted M Guard 44370 | -1/Command | Spotted M Guard 44370 | -1/Command | Spotted Combat Programmer 44373 | -1/Command | Spotted Combat Programmer 44380 | -1/Command | Destroyed M Guard 44412 | -1/Command | Found Prototype Energy Cannon 44421 | -1/Command | Destroyed M Guard 44432 | -1/Command | Destroyed Combat Programmer 44439 | -1/Command | Destroyed Combat Programmer 44439 | -1/Command | All MAIN.C guards destroyed 44449 | -1/Command | Found Hvy. Regenerative Plating 44452 | -1/Command | Found Prototype Energy Cannon 44460 | -1/Command | Identified Cld. Nova Cannon (x2) 44476 | -1/Command | Found Prototype Reactor 44476 | -1/Command | Identified Zero-point Reactor 44486 | -1/Command | Found Exp. Targeting Computer 44493 | -1/Command | Found Prototype Device 44493 | -1/Command | Identified AEGIS Remote Shield 44754 | -1/Command | Build established: Commander-Gunner 45139 | -1/Command | Met MAIN.C 45157 | -1/Command | 0b10 Conduit disabled 45159 | -1/Command | Destroyed MAIN.C Shell 45162 | -1/Command | MAIN.C activated Command garrisons 45193 | -1/Command | Allies destroyed MAIN.C 45286 | -1/Command | Spotted B-99 Colossus 45300 | -1/Command | Assimilated Colossus 10a with formatsys_high 45331 | -1/Command | Build established: Generator-Gunner 45850 | -1/Command | Discovered new exit (range 10) 46883 | -1/Command | Build established: Generator-Mutant 47162 | -1/Command | Phase Generator disabled 47709 | -1/Command | Spotted B-99 Colossus 47736 | -1/Command | Destroyed B-99 Colossus 47857 | -1/Command | Discovered new exit (range 8) 48014 | -1/Command | Build established: Generator-Gunner 49487 | -1/Command | Found Prototype Device 49487 | -1/Command | Identified System Purifier 49714 | -1/Command | Found Vortex Chain Reactor 49743 | -1/Command | Found Cld. Nova Cannon 49836 | -1/Command | Found Zero-point Reactor 50248 | -1/Command | Found Exp. Targeting Computer 50771 | -1/Command | Found System Purifier 51174 | -1/Command | Found Exp. Targeting Computer 51973 | -1/Command | Warped through subspace to slip node 51973 | -1/Command | Discovered new exit (range 5) 51990 | -1/Command | Entered Access_0 51991 | -1/Access_0 | Met Architect 51992 | -1/Access_0 | Architect warped through subspace 52012 | -1/Access_0 | Destroyed A8 52038 | -1/Access_0 | Architect warped through subspace 52084 | -1/Access_0 | Architect warped through subspace 52149 | -1/Access_0 | Architect warped through subspace 52170 | -1/Access_0 | Found Prototype Device 52192 | -1/Access_0 | Architect warped through subspace 52231 | -1/Access_0 | Architect warped through subspace 52264 | -1/Access_0 | Architect warped through subspace 52293 | -1/Access_0 | Architect warped through subspace 52326 | -1/Access_0 | Architect warped through subspace 52350 | -1/Access_0 | Architect warped through subspace 52374 | -1/Access_0 | Architect warped through subspace 52395 | -1/Access_0 | Architect warped through subspace 52425 | -1/Access_0 | Architect warped through subspace 52452 | -1/Access_0 | Architect warped through subspace 52463 | -1/Access_0 | Found Prototype Protection 52463 | -1/Access_0 | Identified Exp. Powered Armor 52476 | -1/Access_0 | Architect warped through subspace 52508 | -1/Access_0 | Architect warped through subspace 52565 | -1/Access_0 | Architect warped through subspace 52598 | -1/Access_0 | Architect warped through subspace 52611 | -1/Access_0 | A6 warped into view 52643 | -1/Access_0 | Destroyed A6 52664 | -1/Access_0 | Architect warped through subspace 52678 | -1/Access_0 | Used Integrity Redistributor, redistributed integrity from core (-474) 52679 | -1/Access_0 | Core integrity fell below 50% 52683 | -1/Access_0 | Subspace Access Node disabled 52697 | -1/Access_0 | Architect warped through subspace 52762 | -1/Access_0 | Architect warped through subspace 52789 | -1/Access_0 | Architect warped through subspace 52824 | -1/Access_0 | Architect warped through subspace 52865 | -1/Access_0 | Architect warped through subspace 52895 | -1/Access_0 | Architect warped through subspace 52901 | -1/Access_0 | Subspace Access Node disabled 52924 | -1/Access_0 | Architect warped through subspace 52944 | -1/Access_0 | Found Integrated Reactor 52944 | -1/Access_0 | Installed Integrated Reactor, increased core energy generation (+10) 52960 | -1/Access_0 | Architect warped through subspace 52984 | -1/Access_0 | Architect warped through subspace 53015 | -1/Access_0 | Architect warped through subspace 53042 | -1/Access_0 | Architect warped through subspace 53070 | -1/Access_0 | Architect warped through subspace 53123 | -1/Access_0 | Subspace Access Node disabled 53130 | -1/Access_0 | Architect warped through subspace 53173 | -1/Access_0 | Architect warped through subspace 53211 | -1/Access_0 | Architect warped through subspace 53246 | -1/Access_0 | Architect warped through subspace 53283 | -1/Access_0 | Architect warped through subspace 53310 | -1/Access_0 | Architect warped through subspace 53347 | -1/Access_0 | Architect warped through subspace 53374 | -1/Access_0 | Architect warped through subspace 53417 | -1/Access_0 | Architect warped through subspace 53493 | -1/Access_0 | Architect warped through subspace 53500 | -1/Access_0 | Subspace Access Node disabled 53603 | -1/Access_0 | Identified Desublimator 54050 | -1/Access_0 | A5 warped into view 54067 | -1/Access_0 | Destroyed A5 54144 | -1/Access_0 | Found Alien Artifact 54185 | -1/Access_0 | Build established: Generator-Tank 54191 | -1/Access_0 | Found Alien Artifact 54565 | -1/Access_0 | Found Exp. Targeting Computer 54570 | -1/Access_0 | Found Prototype Device 54570 | -1/Access_0 | Identified Exp. Weapon Cycler 54812 | -1/Access_0 | A4 warped into view 54822 | -1/Access_0 | Destroyed A4 54876 | -1/Access_0 | Build established: Generator-Gunner 55128 | -1/Access_0 | Found Alien Artifact 55311 | -1/Access_0 | Destroyed A2 55334 | -1/Access_0 | Extracted Singularity Gate Test 138-C access codes from A2's data core 55794 | -1/Access_0 | A3 warped into view 55814 | -1/Access_0 | Destroyed A3 55829 | -1/Access_0 | Found Prototype Ballistic Gun 55829 | -1/Access_0 | Identified A3's Sniper Rifle 55875 | -1/Access_0 | Started Test 138-B, establishing a local singularity 57212 | -1/Access_0 | Destroyed Architect 57213 | -1/Access_0 | Architect triggered a singularity event 57214 | -1/Access_0 | Extracted unknown sensor trigger ID from Architect's data core 57215 | -1/Access_0 | Found Alien Artifact 57215 | -1/Access_0 | Identified Hpw. Transdimensional Reconstructor (x2) 57215 | -1/Access_0 | Warped through subspace to slip node 57215 | -1/Access_0 | Discovered new exit (range 8) 57216 | -1/Access_0 | Identified Core Regenerator 57216 | -1/Access_0 | Used Core Regenerator, restored core integrity (+400) 57217 | -1/Access_0 | Identified Integrated Dissipator 57217 | -1/Access_0 | Installed Integrated Dissipator, increased core heat dissipation (+20) 57221 | *** | Escaped singularity! Last Messages --------------- 57212_ Architect destroyed. 57213_ A0_COM: Initiating irreversible singularity event. Goodbye. 57214_ A0_COM: 10. 57214_ Acquired data core, extracted unknown sensor trigger ID. 57215_ A0_COM: 9. 57215_ Acquired Alien Artifact. 57215_ Identified Hpw. Transdimensional Reconstructor. 57215_ Warped through subspace, drawn to slip node. 57215_ EXIT=FOUND 57216_ A0_COM: 8. 57216_ Identified Core Regenerator. 57216_ Core integrity regenerated (+400). 57217_ A0_COM: 7. 57217_ Identified Integrated Dissipator. 57217_ Integrated Dissipator installed, core heat dissipation increased (+20). 57218_ A0_COM: 6. 57219_ A0_COM: 5. 57220_ A0_COM: 4. 57221_ A0_COM: 3. Map ----- +----------------------------------------------------+ | | | | | | | | | | | | | | | | | | | | | | | | | | | | | | | | | ?????????????????????????????????????????????????? | | ?????????????????????????????????????????????????? | | ?????????????????????????????????????????????????? | | ?????????????????????????????????????????????????? | | ?????????????????????????????????????????????????? | | ?????????????????????????????????????????????????? | | ????????????????????????###??????????????????????? | | ???????????????????????## ##?????????????????????? | | ???????????????????????# #?????????????????????? | | ???????????????????????# @ #?????????????????????? | | ??????????????????????## #?????????????????????? | | ??????????????????????# #?????????????????????? | | ??????????????????????# ##?????????????????????? | | ??????????????????????## #?????????????????????? | | ??????????????????????# #?????????????????????? | | ??????????????????????# ##?????????????????????? | | ??????????????????????# < #?????????????????????? | | ??????????????????????# ##?????????????????????? | | ??????????????????????## #??????????????????????? | | ???????????????????????####??????????????????????? | | ?????????????????????????????????????????????????? | | ?????????????????????????????????????????????????? | | ?????????????????????????????????????????????????? | | ?????????????????????????????????????????????????? | | ?????????????????????????????????????????????????? | | ?????????????????????????????????????????????????? | | ?????????????????????????????????????????????????? | | ?????????????????????????????????????????????????? | | ?????????????????????????????????????????????????? | | ?????????????????????????????????????????????????? | | ?????????????????????????????????????????????????? | | ?????????????????????????????????????????????????? | | ?????????????????????????????????????????????????? | | ?????????????????????????????????????????????????? | +----------------------------------------------------+ Best States ------------- Heat Dissipation 162 Coolant Potential 80 Energy Generation 121 Energy Capacity 1550 Matter Stores 800 Matter Capacity 800 Sight Range 16 Terrain Scan Range 20 Terrain Scan Density 10 Additional Mass Support 20 Armor Coverage 3650 Resistance: KI 30 Resistance: TH 25 Resistance: EM 100 Utility Shielding 90 Weapon Shielding 66 Point Defense Rating 240 Weapon Cycling 30 Melee Speed Boost 20 Phase Shifting 20 Evasion (%) 64 Targeting Accuracy 24 Armor Integrity Analysis 40 Recoil Reduction 6 Particle Charging 25 Kinecelleration 50 Offensive Hacking 10 Relay Coupler Types 163 Relay Coupler Value 5 Item Schematics ----------------- Hcp. Storage Unit | -10/Materials | Hacked Huge Storage Unit | -10/Materials | Hacked Adv. Weapon Cycler | -4/Factory | Scanalyzed Centrium Heavy Armor Plating | -3/Research | Scanalyzed Robot Schematics ------------------ None Fabricated ------------ Nothing Alien Tech Used ----------------- Phase Armor Sigix Broadsword Core Stripper Core Cannon Integrated Singularity Reactor Spacefold Activator Integrated Reactor LRC Insulator Integrity Redistributor Transdimensional Reconstructor High-powered Transdimensional Reconstructor Core Regenerator Integrated Dissipator Achievements -------------- Cannon Specialist Left-hand Path Superinsulated Challenges ------------ None Game ------ Seed EnhancedFocalCompressor Manual? 0 Play Time 08:10:02 Cumulative 423.8 hours Start 2021.06.16 @ 18:51:08 End 2021.06.18 @ 21:36:04 Sessions 5 Manual Loads 0 Difficulty Rogue Special Mode None Game No. 142 Rogue 141 Adventurer 1 Explorer 0 Win Type 6 Total 26 Types 7/4/5/1/1/0/8/0/0 Lore% 94 Gallery% 94 Achievement% 81 Wizard Run 0 Options --------- ASCII 1 Keyboard 1 Movement Numpad Keybinds 0 Fullscreen 0 Font 18/Smallcaps Map View 76x50 Tactical HUD 1 Map Filters NONE Filters NONE Steam 1 RUN: 9900cd6f-57c7-4898-90d2-d3838bef40b5